Workbook

Sheet CW-berekening
C3: Contante waarde berekening
C5: Dossiernr.
C6: Geboortedatum
C7: Geslacht
C9: Startjaar* | E9: Startdatum | F9: =DATE(D9,1,1) -> 1900-01-01
C10: Kapitalisatiejaar*
C12: Jaarlijkse schade
C13: Duur schade* | E13: Einddatum | F13: =DATE(D9+D13,1,1) -> 1900-01-01
C16: Rendement
C19: Inflatie
C22: Sterftekanscorrectie | E22: =IF(D22="ja","GBM/GBV 2012-2017","") -> 
C24: Fiscale schade berekenen
C25: Vrijstelling | D25: Ja, enkele vrijstelling (€30.360)
C27: Contante waarde | D27: =IF(D22="ja",'VAV-uitgebreid'!AA123,'VAV-uitgebreid'!AB123) -> 0
C28: Fiscale schade | D28: =IF(D24="ja",'VAV-uitgebreid'!BD123,"nvt") -> nvt
C29: Totaal | D29: =IF(D24="ja",D27+D28,D27) -> 0
C31: * Als datum wordt 1 januari gehanteerd

Sheet Output
B2: Contante waarde
I3: Dossiernr. | K3: ='CW-berekening'!D5 -> 0
B6: Dossiernr. | C6: ='CW-berekening'!D5 -> 0 | I6: Jaar | J6: Jaarschade | K6: Sterftekans | L6: Rendement | M6: Inflatie | N6: Contante waarde schade | O6: Vermogen begin | P6: Vermogen einde | Q6: Opname schade | R6: Fiscale schade | S6: Rendement
I7: =IFERROR(YEAR('VAV-uitgebreid'!B33),"") ->  | J7: ='VAV-uitgebreid'!G33 ->  | K7: =IF(I7="","",IF($C$29="ja",'VAV-uitgebreid'!M33,1)) ->  | L7: =IF(I7="", "",'VAV-uitgebreid'!Q33) ->  | M7: =IF(I7="", "",'VAV-uitgebreid'!N33) ->  | N7: =IF($C$29="ja",'VAV-uitgebreid'!AA33,'VAV-uitgebreid'!AB33) ->  | O7: =IF('VAV-uitgebreid'!AD33=0,"", 'VAV-uitgebreid'!AD33) ->  | P7: ='VAV-uitgebreid'!AG33 ->  | Q7: =IF('VAV-uitgebreid'!AE33=0,"",'VAV-uitgebreid'!AE33) ->  | R7: ='VAV-uitgebreid'!BD33 ->  | S7: ='VAV-uitgebreid'!AF33 -> 
I8: =IFERROR(YEAR('VAV-uitgebreid'!B34),"") ->  | J8: ='VAV-uitgebreid'!G34 ->  | K8: =IF(I8="","",IF($C$29="ja",'VAV-uitgebreid'!M34,1)) ->  | L8: =IF(I8="", "",'VAV-uitgebreid'!Q34) ->  | M8: =IF(I8="", "",'VAV-uitgebreid'!N34) ->  | N8: =IF($C$29="ja",'VAV-uitgebreid'!AA34,'VAV-uitgebreid'!AB34) ->  | O8: =IF('VAV-uitgebreid'!AD34=0,"", 'VAV-uitgebreid'!AD34) ->  | P8: ='VAV-uitgebreid'!AG34 ->  | Q8: =IF('VAV-uitgebreid'!AE34=0,"",'VAV-uitgebreid'!AE34) ->  | R8: ='VAV-uitgebreid'!BD34 ->  | S8: ='VAV-uitgebreid'!AF34 -> 
I9: =IFERROR(YEAR('VAV-uitgebreid'!B35),"") ->  | J9: ='VAV-uitgebreid'!G35 ->  | K9: =IF(I9="","",IF($C$29="ja",'VAV-uitgebreid'!M35,1)) ->  | L9: =IF(I9="", "",'VAV-uitgebreid'!Q35) ->  | M9: =IF(I9="", "",'VAV-uitgebreid'!N35) ->  | N9: =IF($C$29="ja",'VAV-uitgebreid'!AA35,'VAV-uitgebreid'!AB35) ->  | O9: =IF('VAV-uitgebreid'!AD35=0,"", 'VAV-uitgebreid'!AD35) ->  | P9: ='VAV-uitgebreid'!AG35 ->  | Q9: =IF('VAV-uitgebreid'!AE35=0,"",'VAV-uitgebreid'!AE35) ->  | R9: ='VAV-uitgebreid'!BD35 ->  | S9: ='VAV-uitgebreid'!AF35 -> 
I10: =IFERROR(YEAR('VAV-uitgebreid'!B36),"") ->  | J10: ='VAV-uitgebreid'!G36 ->  | K10: =IF(I10="","",IF($C$29="ja",'VAV-uitgebreid'!M36,1)) ->  | L10: =IF(I10="", "",'VAV-uitgebreid'!Q36) ->  | M10: =IF(I10="", "",'VAV-uitgebreid'!N36) ->  | N10: =IF($C$29="ja",'VAV-uitgebreid'!AA36,'VAV-uitgebreid'!AB36) ->  | O10: =IF('VAV-uitgebreid'!AD36=0,"", 'VAV-uitgebreid'!AD36) ->  | P10: ='VAV-uitgebreid'!AG36 ->  | Q10: =IF('VAV-uitgebreid'!AE36=0,"",'VAV-uitgebreid'!AE36) ->  | R10: ='VAV-uitgebreid'!BD36 ->  | S10: ='VAV-uitgebreid'!AF36 -> 
I11: =IFERROR(YEAR('VAV-uitgebreid'!B37),"") ->  | J11: ='VAV-uitgebreid'!G37 ->  | K11: =IF(I11="","",IF($C$29="ja",'VAV-uitgebreid'!M37,1)) ->  | L11: =IF(I11="", "",'VAV-uitgebreid'!Q37) ->  | M11: =IF(I11="", "",'VAV-uitgebreid'!N37) ->  | N11: =IF($C$29="ja",'VAV-uitgebreid'!AA37,'VAV-uitgebreid'!AB37) ->  | O11: =IF('VAV-uitgebreid'!AD37=0,"", 'VAV-uitgebreid'!AD37) ->  | P11: ='VAV-uitgebreid'!AG37 ->  | Q11: =IF('VAV-uitgebreid'!AE37=0,"",'VAV-uitgebreid'!AE37) ->  | R11: ='VAV-uitgebreid'!BD37 ->  | S11: ='VAV-uitgebreid'!AF37 -> 
I12: =IFERROR(YEAR('VAV-uitgebreid'!B38),"") ->  | J12: ='VAV-uitgebreid'!G38 ->  | K12: =IF(I12="","",IF($C$29="ja",'VAV-uitgebreid'!M38,1)) ->  | L12: =IF(I12="", "",'VAV-uitgebreid'!Q38) ->  | M12: =IF(I12="", "",'VAV-uitgebreid'!N38) ->  | N12: =IF($C$29="ja",'VAV-uitgebreid'!AA38,'VAV-uitgebreid'!AB38) ->  | O12: =IF('VAV-uitgebreid'!AD38=0,"", 'VAV-uitgebreid'!AD38) ->  | P12: ='VAV-uitgebreid'!AG38 ->  | Q12: =IF('VAV-uitgebreid'!AE38=0,"",'VAV-uitgebreid'!AE38) ->  | R12: ='VAV-uitgebreid'!BD38 ->  | S12: ='VAV-uitgebreid'!AF38 -> 
B13: Uitgangspunten | I13: =IFERROR(YEAR('VAV-uitgebreid'!B39),"") ->  | J13: ='VAV-uitgebreid'!G39 ->  | K13: =IF(I13="","",IF($C$29="ja",'VAV-uitgebreid'!M39,1)) ->  | L13: =IF(I13="", "",'VAV-uitgebreid'!Q39) ->  | M13: =IF(I13="", "",'VAV-uitgebreid'!N39) ->  | N13: =IF($C$29="ja",'VAV-uitgebreid'!AA39,'VAV-uitgebreid'!AB39) ->  | O13: =IF('VAV-uitgebreid'!AD39=0,"", 'VAV-uitgebreid'!AD39) ->  | P13: ='VAV-uitgebreid'!AG39 ->  | Q13: =IF('VAV-uitgebreid'!AE39=0,"",'VAV-uitgebreid'!AE39) ->  | R13: ='VAV-uitgebreid'!BD39 ->  | S13: ='VAV-uitgebreid'!AF39 -> 
B14: Geboortedatum | C14: ='CW-berekening'!D6 -> 00:00:00 | I14: =IFERROR(YEAR('VAV-uitgebreid'!B40),"") ->  | J14: ='VAV-uitgebreid'!G40 ->  | K14: =IF(I14="","",IF($C$29="ja",'VAV-uitgebreid'!M40,1)) ->  | L14: =IF(I14="", "",'VAV-uitgebreid'!Q40) ->  | M14: =IF(I14="", "",'VAV-uitgebreid'!N40) ->  | N14: =IF($C$29="ja",'VAV-uitgebreid'!AA40,'VAV-uitgebreid'!AB40) ->  | O14: =IF('VAV-uitgebreid'!AD40=0,"", 'VAV-uitgebreid'!AD40) ->  | P14: ='VAV-uitgebreid'!AG40 ->  | Q14: =IF('VAV-uitgebreid'!AE40=0,"",'VAV-uitgebreid'!AE40) ->  | R14: ='VAV-uitgebreid'!BD40 ->  | S14: ='VAV-uitgebreid'!AF40 -> 
B15: Geslacht | C15: ='CW-berekening'!D7 -> 0 | I15: =IFERROR(YEAR('VAV-uitgebreid'!B41),"") ->  | J15: ='VAV-uitgebreid'!G41 ->  | K15: =IF(I15="","",IF($C$29="ja",'VAV-uitgebreid'!M41,1)) ->  | L15: =IF(I15="", "",'VAV-uitgebreid'!Q41) ->  | M15: =IF(I15="", "",'VAV-uitgebreid'!N41) ->  | N15: =IF($C$29="ja",'VAV-uitgebreid'!AA41,'VAV-uitgebreid'!AB41) ->  | O15: =IF('VAV-uitgebreid'!AD41=0,"", 'VAV-uitgebreid'!AD41) ->  | P15: ='VAV-uitgebreid'!AG41 ->  | Q15: =IF('VAV-uitgebreid'!AE41=0,"",'VAV-uitgebreid'!AE41) ->  | R15: ='VAV-uitgebreid'!BD41 ->  | S15: ='VAV-uitgebreid'!AF41 -> 
I16: =IFERROR(YEAR('VAV-uitgebreid'!B42),"") ->  | J16: ='VAV-uitgebreid'!G42 ->  | K16: =IF(I16="","",IF($C$29="ja",'VAV-uitgebreid'!M42,1)) ->  | L16: =IF(I16="", "",'VAV-uitgebreid'!Q42) ->  | M16: =IF(I16="", "",'VAV-uitgebreid'!N42) ->  | N16: =IF($C$29="ja",'VAV-uitgebreid'!AA42,'VAV-uitgebreid'!AB42) ->  | O16: =IF('VAV-uitgebreid'!AD42=0,"", 'VAV-uitgebreid'!AD42) ->  | P16: ='VAV-uitgebreid'!AG42 ->  | Q16: =IF('VAV-uitgebreid'!AE42=0,"",'VAV-uitgebreid'!AE42) ->  | R16: ='VAV-uitgebreid'!BD42 ->  | S16: ='VAV-uitgebreid'!AF42 -> 
B17: Jaarschade | I17: =IFERROR(YEAR('VAV-uitgebreid'!B43),"") ->  | J17: ='VAV-uitgebreid'!G43 ->  | K17: =IF(I17="","",IF($C$29="ja",'VAV-uitgebreid'!M43,1)) ->  | L17: =IF(I17="", "",'VAV-uitgebreid'!Q43) ->  | M17: =IF(I17="", "",'VAV-uitgebreid'!N43) ->  | N17: =IF($C$29="ja",'VAV-uitgebreid'!AA43,'VAV-uitgebreid'!AB43) ->  | O17: =IF('VAV-uitgebreid'!AD43=0,"", 'VAV-uitgebreid'!AD43) ->  | P17: ='VAV-uitgebreid'!AG43 ->  | Q17: =IF('VAV-uitgebreid'!AE43=0,"",'VAV-uitgebreid'!AE43) ->  | R17: ='VAV-uitgebreid'!BD43 ->  | S17: ='VAV-uitgebreid'!AF43 -> 
C18: Bedrag | E18: Van | G18: Tot | I18: =IFERROR(YEAR('VAV-uitgebreid'!B44),"") ->  | J18: ='VAV-uitgebreid'!G44 ->  | K18: =IF(I18="","",IF($C$29="ja",'VAV-uitgebreid'!M44,1)) ->  | L18: =IF(I18="", "",'VAV-uitgebreid'!Q44) ->  | M18: =IF(I18="", "",'VAV-uitgebreid'!N44) ->  | N18: =IF($C$29="ja",'VAV-uitgebreid'!AA44,'VAV-uitgebreid'!AB44) ->  | O18: =IF('VAV-uitgebreid'!AD44=0,"", 'VAV-uitgebreid'!AD44) ->  | P18: ='VAV-uitgebreid'!AG44 ->  | Q18: =IF('VAV-uitgebreid'!AE44=0,"",'VAV-uitgebreid'!AE44) ->  | R18: ='VAV-uitgebreid'!BD44 ->  | S18: ='VAV-uitgebreid'!AF44 -> 
C19: ='CW-berekening'!D12 -> 0 | E19: =DATE('CW-berekening'!D9,1,1) -> 1900-01-01 | G19: =DATE(('CW-berekening'!D9)+('CW-berekening'!D13),1,1) -> 1900-01-01 | I19: =IFERROR(YEAR('VAV-uitgebreid'!B45),"") ->  | J19: ='VAV-uitgebreid'!G45 ->  | K19: =IF(I19="","",IF($C$29="ja",'VAV-uitgebreid'!M45,1)) ->  | L19: =IF(I19="", "",'VAV-uitgebreid'!Q45) ->  | M19: =IF(I19="", "",'VAV-uitgebreid'!N45) ->  | N19: =IF($C$29="ja",'VAV-uitgebreid'!AA45,'VAV-uitgebreid'!AB45) ->  | O19: =IF('VAV-uitgebreid'!AD45=0,"", 'VAV-uitgebreid'!AD45) ->  | P19: ='VAV-uitgebreid'!AG45 ->  | Q19: =IF('VAV-uitgebreid'!AE45=0,"",'VAV-uitgebreid'!AE45) ->  | R19: ='VAV-uitgebreid'!BD45 ->  | S19: ='VAV-uitgebreid'!AF45 -> 
I20: =IFERROR(YEAR('VAV-uitgebreid'!B46),"") ->  | J20: ='VAV-uitgebreid'!G46 ->  | K20: =IF(I20="","",IF($C$29="ja",'VAV-uitgebreid'!M46,1)) ->  | L20: =IF(I20="", "",'VAV-uitgebreid'!Q46) ->  | M20: =IF(I20="", "",'VAV-uitgebreid'!N46) ->  | N20: =IF($C$29="ja",'VAV-uitgebreid'!AA46,'VAV-uitgebreid'!AB46) ->  | O20: =IF('VAV-uitgebreid'!AD46=0,"", 'VAV-uitgebreid'!AD46) ->  | P20: ='VAV-uitgebreid'!AG46 ->  | Q20: =IF('VAV-uitgebreid'!AE46=0,"",'VAV-uitgebreid'!AE46) ->  | R20: ='VAV-uitgebreid'!BD46 ->  | S20: ='VAV-uitgebreid'!AF46 -> 
I21: =IFERROR(YEAR('VAV-uitgebreid'!B47),"") ->  | J21: ='VAV-uitgebreid'!G47 ->  | K21: =IF(I21="","",IF($C$29="ja",'VAV-uitgebreid'!M47,1)) ->  | L21: =IF(I21="", "",'VAV-uitgebreid'!Q47) ->  | M21: =IF(I21="", "",'VAV-uitgebreid'!N47) ->  | N21: =IF($C$29="ja",'VAV-uitgebreid'!AA47,'VAV-uitgebreid'!AB47) ->  | O21: =IF('VAV-uitgebreid'!AD47=0,"", 'VAV-uitgebreid'!AD47) ->  | P21: ='VAV-uitgebreid'!AG47 ->  | Q21: =IF('VAV-uitgebreid'!AE47=0,"",'VAV-uitgebreid'!AE47) ->  | R21: ='VAV-uitgebreid'!BD47 ->  | S21: ='VAV-uitgebreid'!AF47 -> 
B22: Kapitalisatiedatum | C22: =DATE('CW-berekening'!D10,1,1) -> 1900-01-01 | I22: =IFERROR(YEAR('VAV-uitgebreid'!B48),"") ->  | J22: ='VAV-uitgebreid'!G48 ->  | K22: =IF(I22="","",IF($C$29="ja",'VAV-uitgebreid'!M48,1)) ->  | L22: =IF(I22="", "",'VAV-uitgebreid'!Q48) ->  | M22: =IF(I22="", "",'VAV-uitgebreid'!N48) ->  | N22: =IF($C$29="ja",'VAV-uitgebreid'!AA48,'VAV-uitgebreid'!AB48) ->  | O22: =IF('VAV-uitgebreid'!AD48=0,"", 'VAV-uitgebreid'!AD48) ->  | P22: ='VAV-uitgebreid'!AG48 ->  | Q22: =IF('VAV-uitgebreid'!AE48=0,"",'VAV-uitgebreid'!AE48) ->  | R22: ='VAV-uitgebreid'!BD48 ->  | S22: ='VAV-uitgebreid'!AF48 -> 
E23: Van | G23: Tot | I23: =IFERROR(YEAR('VAV-uitgebreid'!B49),"") ->  | J23: ='VAV-uitgebreid'!G49 ->  | K23: =IF(I23="","",IF($C$29="ja",'VAV-uitgebreid'!M49,1)) ->  | L23: =IF(I23="", "",'VAV-uitgebreid'!Q49) ->  | M23: =IF(I23="", "",'VAV-uitgebreid'!N49) ->  | N23: =IF($C$29="ja",'VAV-uitgebreid'!AA49,'VAV-uitgebreid'!AB49) ->  | O23: =IF('VAV-uitgebreid'!AD49=0,"", 'VAV-uitgebreid'!AD49) ->  | P23: ='VAV-uitgebreid'!AG49 ->  | Q23: =IF('VAV-uitgebreid'!AE49=0,"",'VAV-uitgebreid'!AE49) ->  | R23: ='VAV-uitgebreid'!BD49 ->  | S23: ='VAV-uitgebreid'!AF49 -> 
B24: Rendement | C24: ='CW-berekening'!D16 -> 0 | E24: =C22 -> 1900-01-01 | G24: =G19 -> 1900-01-01 | I24: =IFERROR(YEAR('VAV-uitgebreid'!B50),"") ->  | J24: ='VAV-uitgebreid'!G50 ->  | K24: =IF(I24="","",IF($C$29="ja",'VAV-uitgebreid'!M50,1)) ->  | L24: =IF(I24="", "",'VAV-uitgebreid'!Q50) ->  | M24: =IF(I24="", "",'VAV-uitgebreid'!N50) ->  | N24: =IF($C$29="ja",'VAV-uitgebreid'!AA50,'VAV-uitgebreid'!AB50) ->  | O24: =IF('VAV-uitgebreid'!AD50=0,"", 'VAV-uitgebreid'!AD50) ->  | P24: ='VAV-uitgebreid'!AG50 ->  | Q24: =IF('VAV-uitgebreid'!AE50=0,"",'VAV-uitgebreid'!AE50) ->  | R24: ='VAV-uitgebreid'!BD50 ->  | S24: ='VAV-uitgebreid'!AF50 -> 
I25: =IFERROR(YEAR('VAV-uitgebreid'!B51),"") ->  | J25: ='VAV-uitgebreid'!G51 ->  | K25: =IF(I25="","",IF($C$29="ja",'VAV-uitgebreid'!M51,1)) ->  | L25: =IF(I25="", "",'VAV-uitgebreid'!Q51) ->  | M25: =IF(I25="", "",'VAV-uitgebreid'!N51) ->  | N25: =IF($C$29="ja",'VAV-uitgebreid'!AA51,'VAV-uitgebreid'!AB51) ->  | O25: =IF('VAV-uitgebreid'!AD51=0,"", 'VAV-uitgebreid'!AD51) ->  | P25: ='VAV-uitgebreid'!AG51 ->  | Q25: =IF('VAV-uitgebreid'!AE51=0,"",'VAV-uitgebreid'!AE51) ->  | R25: ='VAV-uitgebreid'!BD51 ->  | S25: ='VAV-uitgebreid'!AF51 -> 
B26: Inflatie | C26: ='CW-berekening'!D19 -> 0 | E26: =C22 -> 1900-01-01 | G26: =G19 -> 1900-01-01 | I26: =IFERROR(YEAR('VAV-uitgebreid'!B52),"") ->  | J26: ='VAV-uitgebreid'!G52 ->  | K26: =IF(I26="","",IF($C$29="ja",'VAV-uitgebreid'!M52,1)) ->  | L26: =IF(I26="", "",'VAV-uitgebreid'!Q52) ->  | M26: =IF(I26="", "",'VAV-uitgebreid'!N52) ->  | N26: =IF($C$29="ja",'VAV-uitgebreid'!AA52,'VAV-uitgebreid'!AB52) ->  | O26: =IF('VAV-uitgebreid'!AD52=0,"", 'VAV-uitgebreid'!AD52) ->  | P26: ='VAV-uitgebreid'!AG52 ->  | Q26: =IF('VAV-uitgebreid'!AE52=0,"",'VAV-uitgebreid'!AE52) ->  | R26: ='VAV-uitgebreid'!BD52 ->  | S26: ='VAV-uitgebreid'!AF52 -> 
I27: =IFERROR(YEAR('VAV-uitgebreid'!B53),"") ->  | J27: ='VAV-uitgebreid'!G53 ->  | K27: =IF(I27="","",IF($C$29="ja",'VAV-uitgebreid'!M53,1)) ->  | L27: =IF(I27="", "",'VAV-uitgebreid'!Q53) ->  | M27: =IF(I27="", "",'VAV-uitgebreid'!N53) ->  | N27: =IF($C$29="ja",'VAV-uitgebreid'!AA53,'VAV-uitgebreid'!AB53) ->  | O27: =IF('VAV-uitgebreid'!AD53=0,"", 'VAV-uitgebreid'!AD53) ->  | P27: ='VAV-uitgebreid'!AG53 ->  | Q27: =IF('VAV-uitgebreid'!AE53=0,"",'VAV-uitgebreid'!AE53) ->  | R27: ='VAV-uitgebreid'!BD53 ->  | S27: ='VAV-uitgebreid'!AF53 -> 
I28: =IFERROR(YEAR('VAV-uitgebreid'!B54),"") ->  | J28: ='VAV-uitgebreid'!G54 ->  | K28: =IF(I28="","",IF($C$29="ja",'VAV-uitgebreid'!M54,1)) ->  | L28: =IF(I28="", "",'VAV-uitgebreid'!Q54) ->  | M28: =IF(I28="", "",'VAV-uitgebreid'!N54) ->  | N28: =IF($C$29="ja",'VAV-uitgebreid'!AA54,'VAV-uitgebreid'!AB54) ->  | O28: =IF('VAV-uitgebreid'!AD54=0,"", 'VAV-uitgebreid'!AD54) ->  | P28: ='VAV-uitgebreid'!AG54 ->  | Q28: =IF('VAV-uitgebreid'!AE54=0,"",'VAV-uitgebreid'!AE54) ->  | R28: ='VAV-uitgebreid'!BD54 ->  | S28: ='VAV-uitgebreid'!AF54 -> 
B29: Sterftekanscorrectie | C29: ='CW-berekening'!D22 -> 0 | E29: =IF(C29="ja","GBM/GBV 2012-2017","") ->  | I29: =IFERROR(YEAR('VAV-uitgebreid'!B55),"") ->  | J29: ='VAV-uitgebreid'!G55 ->  | K29: =IF(I29="","",IF($C$29="ja",'VAV-uitgebreid'!M55,1)) ->  | L29: =IF(I29="", "",'VAV-uitgebreid'!Q55) ->  | M29: =IF(I29="", "",'VAV-uitgebreid'!N55) ->  | N29: =IF($C$29="ja",'VAV-uitgebreid'!AA55,'VAV-uitgebreid'!AB55) ->  | O29: =IF('VAV-uitgebreid'!AD55=0,"", 'VAV-uitgebreid'!AD55) ->  | P29: ='VAV-uitgebreid'!AG55 ->  | Q29: =IF('VAV-uitgebreid'!AE55=0,"",'VAV-uitgebreid'!AE55) ->  | R29: ='VAV-uitgebreid'!BD55 ->  | S29: ='VAV-uitgebreid'!AF55 -> 
I30: =IFERROR(YEAR('VAV-uitgebreid'!B56),"") ->  | J30: ='VAV-uitgebreid'!G56 ->  | K30: =IF(I30="","",IF($C$29="ja",'VAV-uitgebreid'!M56,1)) ->  | L30: =IF(I30="", "",'VAV-uitgebreid'!Q56) ->  | M30: =IF(I30="", "",'VAV-uitgebreid'!N56) ->  | N30: =IF($C$29="ja",'VAV-uitgebreid'!AA56,'VAV-uitgebreid'!AB56) ->  | O30: =IF('VAV-uitgebreid'!AD56=0,"", 'VAV-uitgebreid'!AD56) ->  | P30: ='VAV-uitgebreid'!AG56 ->  | Q30: =IF('VAV-uitgebreid'!AE56=0,"",'VAV-uitgebreid'!AE56) ->  | R30: ='VAV-uitgebreid'!BD56 ->  | S30: ='VAV-uitgebreid'!AF56 -> 
B31: Belastingschade | C31: ='CW-berekening'!D24 -> 0 | E31: =IF(C31="ja","Fiscale cijfers 2019","") ->  | I31: =IFERROR(YEAR('VAV-uitgebreid'!B57),"") ->  | J31: ='VAV-uitgebreid'!G57 ->  | K31: =IF(I31="","",IF($C$29="ja",'VAV-uitgebreid'!M57,1)) ->  | L31: =IF(I31="", "",'VAV-uitgebreid'!Q57) ->  | M31: =IF(I31="", "",'VAV-uitgebreid'!N57) ->  | N31: =IF($C$29="ja",'VAV-uitgebreid'!AA57,'VAV-uitgebreid'!AB57) ->  | O31: =IF('VAV-uitgebreid'!AD57=0,"", 'VAV-uitgebreid'!AD57) ->  | P31: ='VAV-uitgebreid'!AG57 ->  | Q31: =IF('VAV-uitgebreid'!AE57=0,"",'VAV-uitgebreid'!AE57) ->  | R31: ='VAV-uitgebreid'!BD57 ->  | S31: ='VAV-uitgebreid'!AF57 -> 
B32: Vrijstelling | C32: ='CW-berekening'!D25 -> Ja, enkele vrijstelling (€30.360) | I32: =IFERROR(YEAR('VAV-uitgebreid'!B58),"") ->  | J32: ='VAV-uitgebreid'!G58 ->  | K32: =IF(I32="","",IF($C$29="ja",'VAV-uitgebreid'!M58,1)) ->  | L32: =IF(I32="", "",'VAV-uitgebreid'!Q58) ->  | M32: =IF(I32="", "",'VAV-uitgebreid'!N58) ->  | N32: =IF($C$29="ja",'VAV-uitgebreid'!AA58,'VAV-uitgebreid'!AB58) ->  | O32: =IF('VAV-uitgebreid'!AD58=0,"", 'VAV-uitgebreid'!AD58) ->  | P32: ='VAV-uitgebreid'!AG58 ->  | Q32: =IF('VAV-uitgebreid'!AE58=0,"",'VAV-uitgebreid'!AE58) ->  | R32: ='VAV-uitgebreid'!BD58 ->  | S32: ='VAV-uitgebreid'!AF58 -> 
I33: =IFERROR(YEAR('VAV-uitgebreid'!B59),"") ->  | J33: ='VAV-uitgebreid'!G59 ->  | K33: =IF(I33="","",IF($C$29="ja",'VAV-uitgebreid'!M59,1)) ->  | L33: =IF(I33="", "",'VAV-uitgebreid'!Q59) ->  | M33: =IF(I33="", "",'VAV-uitgebreid'!N59) ->  | N33: =IF($C$29="ja",'VAV-uitgebreid'!AA59,'VAV-uitgebreid'!AB59) ->  | O33: =IF('VAV-uitgebreid'!AD59=0,"", 'VAV-uitgebreid'!AD59) ->  | P33: ='VAV-uitgebreid'!AG59 ->  | Q33: =IF('VAV-uitgebreid'!AE59=0,"",'VAV-uitgebreid'!AE59) ->  | R33: ='VAV-uitgebreid'!BD59 ->  | S33: ='VAV-uitgebreid'!AF59 -> 
I34: =IFERROR(YEAR('VAV-uitgebreid'!B60),"") ->  | J34: ='VAV-uitgebreid'!G60 ->  | K34: =IF(I34="","",IF($C$29="ja",'VAV-uitgebreid'!M60,1)) ->  | L34: =IF(I34="", "",'VAV-uitgebreid'!Q60) ->  | M34: =IF(I34="", "",'VAV-uitgebreid'!N60) ->  | N34: =IF($C$29="ja",'VAV-uitgebreid'!AA60,'VAV-uitgebreid'!AB60) ->  | O34: =IF('VAV-uitgebreid'!AD60=0,"", 'VAV-uitgebreid'!AD60) ->  | P34: ='VAV-uitgebreid'!AG60 ->  | Q34: =IF('VAV-uitgebreid'!AE60=0,"",'VAV-uitgebreid'!AE60) ->  | R34: ='VAV-uitgebreid'!BD60 ->  | S34: ='VAV-uitgebreid'!AF60 -> 
B35: Resultaat | I35: =IFERROR(YEAR('VAV-uitgebreid'!B61),"") ->  | J35: ='VAV-uitgebreid'!G61 ->  | K35: =IF(I35="","",IF($C$29="ja",'VAV-uitgebreid'!M61,1)) ->  | L35: =IF(I35="", "",'VAV-uitgebreid'!Q61) ->  | M35: =IF(I35="", "",'VAV-uitgebreid'!N61) ->  | N35: =IF($C$29="ja",'VAV-uitgebreid'!AA61,'VAV-uitgebreid'!AB61) ->  | O35: =IF('VAV-uitgebreid'!AD61=0,"", 'VAV-uitgebreid'!AD61) ->  | P35: ='VAV-uitgebreid'!AG61 ->  | Q35: =IF('VAV-uitgebreid'!AE61=0,"",'VAV-uitgebreid'!AE61) ->  | R35: ='VAV-uitgebreid'!BD61 ->  | S35: ='VAV-uitgebreid'!AF61 -> 
B36: Verschenen schade | C36: ='VAV-uitgebreid'!D4 -> 0 | I36: =IFERROR(YEAR('VAV-uitgebreid'!B62),"") ->  | J36: ='VAV-uitgebreid'!G62 ->  | K36: =IF(I36="","",IF($C$29="ja",'VAV-uitgebreid'!M62,1)) ->  | L36: =IF(I36="", "",'VAV-uitgebreid'!Q62) ->  | M36: =IF(I36="", "",'VAV-uitgebreid'!N62) ->  | N36: =IF($C$29="ja",'VAV-uitgebreid'!AA62,'VAV-uitgebreid'!AB62) ->  | O36: =IF('VAV-uitgebreid'!AD62=0,"", 'VAV-uitgebreid'!AD62) ->  | P36: ='VAV-uitgebreid'!AG62 ->  | Q36: =IF('VAV-uitgebreid'!AE62=0,"",'VAV-uitgebreid'!AE62) ->  | R36: ='VAV-uitgebreid'!BD62 ->  | S36: ='VAV-uitgebreid'!AF62 -> 
B37: Toekomstige schade | C37: =('CW-berekening'!D27)-C36 -> 0 | I37: =IFERROR(YEAR('VAV-uitgebreid'!B63),"") ->  | J37: ='VAV-uitgebreid'!G63 ->  | K37: =IF(I37="","",IF($C$29="ja",'VAV-uitgebreid'!M63,1)) ->  | L37: =IF(I37="", "",'VAV-uitgebreid'!Q63) ->  | M37: =IF(I37="", "",'VAV-uitgebreid'!N63) ->  | N37: =IF($C$29="ja",'VAV-uitgebreid'!AA63,'VAV-uitgebreid'!AB63) ->  | O37: =IF('VAV-uitgebreid'!AD63=0,"", 'VAV-uitgebreid'!AD63) ->  | P37: ='VAV-uitgebreid'!AG63 ->  | Q37: =IF('VAV-uitgebreid'!AE63=0,"",'VAV-uitgebreid'!AE63) ->  | R37: ='VAV-uitgebreid'!BD63 ->  | S37: ='VAV-uitgebreid'!AF63 -> 
B38: Fiscale schade | C38: ='CW-berekening'!D28 -> nvt | I38: =IFERROR(YEAR('VAV-uitgebreid'!B64),"") ->  | J38: ='VAV-uitgebreid'!G64 ->  | K38: =IF(I38="","",IF($C$29="ja",'VAV-uitgebreid'!M64,1)) ->  | L38: =IF(I38="", "",'VAV-uitgebreid'!Q64) ->  | M38: =IF(I38="", "",'VAV-uitgebreid'!N64) ->  | N38: =IF($C$29="ja",'VAV-uitgebreid'!AA64,'VAV-uitgebreid'!AB64) ->  | O38: =IF('VAV-uitgebreid'!AD64=0,"", 'VAV-uitgebreid'!AD64) ->  | P38: ='VAV-uitgebreid'!AG64 ->  | Q38: =IF('VAV-uitgebreid'!AE64=0,"",'VAV-uitgebreid'!AE64) ->  | R38: ='VAV-uitgebreid'!BD64 ->  | S38: ='VAV-uitgebreid'!AF64 -> 
B39: Totale schade | C39: =SUM(C36:C38) -> 0 | I39: =IFERROR(YEAR('VAV-uitgebreid'!B65),"") ->  | J39: ='VAV-uitgebreid'!G65 ->  | K39: =IF(I39="","",IF($C$29="ja",'VAV-uitgebreid'!M65,1)) ->  | L39: =IF(I39="", "",'VAV-uitgebreid'!Q65) ->  | M39: =IF(I39="", "",'VAV-uitgebreid'!N65) ->  | N39: =IF($C$29="ja",'VAV-uitgebreid'!AA65,'VAV-uitgebreid'!AB65) ->  | O39: =IF('VAV-uitgebreid'!AD65=0,"", 'VAV-uitgebreid'!AD65) ->  | P39: ='VAV-uitgebreid'!AG65 ->  | Q39: =IF('VAV-uitgebreid'!AE65=0,"",'VAV-uitgebreid'!AE65) ->  | R39: ='VAV-uitgebreid'!BD65 ->  | S39: ='VAV-uitgebreid'!AF65 -> 
I40: =IFERROR(YEAR('VAV-uitgebreid'!B66),"") ->  | J40: ='VAV-uitgebreid'!G66 ->  | K40: =IF(I40="","",IF($C$29="ja",'VAV-uitgebreid'!M66,1)) ->  | L40: =IF(I40="", "",'VAV-uitgebreid'!Q66) ->  | M40: =IF(I40="", "",'VAV-uitgebreid'!N66) ->  | N40: =IF($C$29="ja",'VAV-uitgebreid'!AA66,'VAV-uitgebreid'!AB66) ->  | O40: =IF('VAV-uitgebreid'!AD66=0,"", 'VAV-uitgebreid'!AD66) ->  | P40: ='VAV-uitgebreid'!AG66 ->  | Q40: =IF('VAV-uitgebreid'!AE66=0,"",'VAV-uitgebreid'!AE66) ->  | R40: ='VAV-uitgebreid'!BD66 ->  | S40: ='VAV-uitgebreid'!AF66 -> 
I41: =IFERROR(YEAR('VAV-uitgebreid'!B67),"") ->  | J41: ='VAV-uitgebreid'!G67 ->  | K41: =IF(I41="","",IF($C$29="ja",'VAV-uitgebreid'!M67,1)) ->  | L41: =IF(I41="", "",'VAV-uitgebreid'!Q67) ->  | M41: =IF(I41="", "",'VAV-uitgebreid'!N67) ->  | N41: =IF($C$29="ja",'VAV-uitgebreid'!AA67,'VAV-uitgebreid'!AB67) ->  | O41: =IF('VAV-uitgebreid'!AD67=0,"", 'VAV-uitgebreid'!AD67) ->  | P41: ='VAV-uitgebreid'!AG67 ->  | Q41: =IF('VAV-uitgebreid'!AE67=0,"",'VAV-uitgebreid'!AE67) ->  | R41: ='VAV-uitgebreid'!BD67 ->  | S41: ='VAV-uitgebreid'!AF67 -> 
I42: =IFERROR(YEAR('VAV-uitgebreid'!B68),"") ->  | J42: ='VAV-uitgebreid'!G68 ->  | K42: =IF(I42="","",IF($C$29="ja",'VAV-uitgebreid'!M68,1)) ->  | L42: =IF(I42="", "",'VAV-uitgebreid'!Q68) ->  | M42: =IF(I42="", "",'VAV-uitgebreid'!N68) ->  | N42: =IF($C$29="ja",'VAV-uitgebreid'!AA68,'VAV-uitgebreid'!AB68) ->  | O42: =IF('VAV-uitgebreid'!AD68=0,"", 'VAV-uitgebreid'!AD68) ->  | P42: ='VAV-uitgebreid'!AG68 ->  | Q42: =IF('VAV-uitgebreid'!AE68=0,"",'VAV-uitgebreid'!AE68) ->  | R42: ='VAV-uitgebreid'!BD68 ->  | S42: ='VAV-uitgebreid'!AF68 -> 
I43: =IFERROR(YEAR('VAV-uitgebreid'!B69),"") ->  | J43: ='VAV-uitgebreid'!G69 ->  | K43: =IF(I43="","",IF($C$29="ja",'VAV-uitgebreid'!M69,1)) ->  | L43: =IF(I43="", "",'VAV-uitgebreid'!Q69) ->  | M43: =IF(I43="", "",'VAV-uitgebreid'!N69) ->  | N43: =IF($C$29="ja",'VAV-uitgebreid'!AA69,'VAV-uitgebreid'!AB69) ->  | O43: =IF('VAV-uitgebreid'!AD69=0,"", 'VAV-uitgebreid'!AD69) ->  | P43: ='VAV-uitgebreid'!AG69 ->  | Q43: =IF('VAV-uitgebreid'!AE69=0,"",'VAV-uitgebreid'!AE69) ->  | R43: ='VAV-uitgebreid'!BD69 ->  | S43: ='VAV-uitgebreid'!AF69 -> 
I44: =IFERROR(YEAR('VAV-uitgebreid'!B70),"") ->  | J44: ='VAV-uitgebreid'!G70 ->  | K44: =IF(I44="","",IF($C$29="ja",'VAV-uitgebreid'!M70,1)) ->  | L44: =IF(I44="", "",'VAV-uitgebreid'!Q70) ->  | M44: =IF(I44="", "",'VAV-uitgebreid'!N70) ->  | N44: =IF($C$29="ja",'VAV-uitgebreid'!AA70,'VAV-uitgebreid'!AB70) ->  | O44: =IF('VAV-uitgebreid'!AD70=0,"", 'VAV-uitgebreid'!AD70) ->  | P44: ='VAV-uitgebreid'!AG70 ->  | Q44: =IF('VAV-uitgebreid'!AE70=0,"",'VAV-uitgebreid'!AE70) ->  | R44: ='VAV-uitgebreid'!BD70 ->  | S44: ='VAV-uitgebreid'!AF70 -> 
I45: Disclaimer
I46: Aan deze berekening kunnen geen rechten ontleend worden. Sedgwick aanvaardt daarom
I47: geen enkele aansprakelijkheid bij het gebruik van deze rekenmodule.
I50: =IFERROR(YEAR('VAV-uitgebreid'!B71),"") ->  | J50: ='VAV-uitgebreid'!G71 ->  | K50: =IF(I50="","",IF($C$29="ja",'VAV-uitgebreid'!M71,1)) ->  | L50: =IF(I50="", "",'VAV-uitgebreid'!Q71) ->  | M50: =IF(I50="", "",'VAV-uitgebreid'!N71) ->  | N50: =IF($C$29="ja",'VAV-uitgebreid'!AA71,'VAV-uitgebreid'!AB71) ->  | O50: =IF('VAV-uitgebreid'!AD71=0,"", 'VAV-uitgebreid'!AD71) ->  | P50: ='VAV-uitgebreid'!AG71 ->  | Q50: =IF('VAV-uitgebreid'!AE71=0,"",'VAV-uitgebreid'!AE71) ->  | R50: ='VAV-uitgebreid'!BD71 ->  | S50: ='VAV-uitgebreid'!AF71 -> 
I51: =IFERROR(YEAR('VAV-uitgebreid'!B72),"") ->  | J51: ='VAV-uitgebreid'!G72 ->  | K51: =IF(I51="","",IF($C$29="ja",'VAV-uitgebreid'!M72,1)) ->  | L51: =IF(I51="", "",'VAV-uitgebreid'!Q72) ->  | M51: =IF(I51="", "",'VAV-uitgebreid'!N72) ->  | N51: =IF($C$29="ja",'VAV-uitgebreid'!AA72,'VAV-uitgebreid'!AB72) ->  | O51: =IF('VAV-uitgebreid'!AD72=0,"", 'VAV-uitgebreid'!AD72) ->  | P51: ='VAV-uitgebreid'!AG72 ->  | Q51: =IF('VAV-uitgebreid'!AE72=0,"",'VAV-uitgebreid'!AE72) ->  | R51: ='VAV-uitgebreid'!BD72 ->  | S51: ='VAV-uitgebreid'!AF72 -> 
I52: =IFERROR(YEAR('VAV-uitgebreid'!B73),"") ->  | J52: ='VAV-uitgebreid'!G73 ->  | K52: =IF(I52="","",IF($C$29="ja",'VAV-uitgebreid'!M73,1)) ->  | L52: =IF(I52="", "",'VAV-uitgebreid'!Q73) ->  | M52: =IF(I52="", "",'VAV-uitgebreid'!N73) ->  | N52: =IF($C$29="ja",'VAV-uitgebreid'!AA73,'VAV-uitgebreid'!AB73) ->  | O52: =IF('VAV-uitgebreid'!AD73=0,"", 'VAV-uitgebreid'!AD73) ->  | P52: ='VAV-uitgebreid'!AG73 ->  | Q52: =IF('VAV-uitgebreid'!AE73=0,"",'VAV-uitgebreid'!AE73) ->  | R52: ='VAV-uitgebreid'!BD73 ->  | S52: ='VAV-uitgebreid'!AF73 -> 
I53: =IFERROR(YEAR('VAV-uitgebreid'!B74),"") ->  | J53: ='VAV-uitgebreid'!G74 ->  | K53: =IF(I53="","",IF($C$29="ja",'VAV-uitgebreid'!M74,1)) ->  | L53: =IF(I53="", "",'VAV-uitgebreid'!Q74) ->  | M53: =IF(I53="", "",'VAV-uitgebreid'!N74) ->  | N53: =IF($C$29="ja",'VAV-uitgebreid'!AA74,'VAV-uitgebreid'!AB74) ->  | O53: =IF('VAV-uitgebreid'!AD74=0,"", 'VAV-uitgebreid'!AD74) ->  | P53: ='VAV-uitgebreid'!AG74 ->  | Q53: =IF('VAV-uitgebreid'!AE74=0,"",'VAV-uitgebreid'!AE74) ->  | R53: ='VAV-uitgebreid'!BD74 ->  | S53: ='VAV-uitgebreid'!AF74 -> 
I54: =IFERROR(YEAR('VAV-uitgebreid'!B75),"") ->  | J54: ='VAV-uitgebreid'!G75 ->  | K54: =IF(I54="","",IF($C$29="ja",'VAV-uitgebreid'!M75,1)) ->  | L54: =IF(I54="", "",'VAV-uitgebreid'!Q75) ->  | M54: =IF(I54="", "",'VAV-uitgebreid'!N75) ->  | N54: =IF($C$29="ja",'VAV-uitgebreid'!AA75,'VAV-uitgebreid'!AB75) ->  | O54: =IF('VAV-uitgebreid'!AD75=0,"", 'VAV-uitgebreid'!AD75) ->  | P54: ='VAV-uitgebreid'!AG75 ->  | Q54: =IF('VAV-uitgebreid'!AE75=0,"",'VAV-uitgebreid'!AE75) ->  | R54: ='VAV-uitgebreid'!BD75 ->  | S54: ='VAV-uitgebreid'!AF75 -> 
I55: =IFERROR(YEAR('VAV-uitgebreid'!B76),"") ->  | J55: ='VAV-uitgebreid'!G76 ->  | K55: =IF(I55="","",IF($C$29="ja",'VAV-uitgebreid'!M76,1)) ->  | L55: =IF(I55="", "",'VAV-uitgebreid'!Q76) ->  | M55: =IF(I55="", "",'VAV-uitgebreid'!N76) ->  | N55: =IF($C$29="ja",'VAV-uitgebreid'!AA76,'VAV-uitgebreid'!AB76) ->  | O55: =IF('VAV-uitgebreid'!AD76=0,"", 'VAV-uitgebreid'!AD76) ->  | P55: ='VAV-uitgebreid'!AG76 ->  | Q55: =IF('VAV-uitgebreid'!AE76=0,"",'VAV-uitgebreid'!AE76) ->  | R55: ='VAV-uitgebreid'!BD76 ->  | S55: ='VAV-uitgebreid'!AF76 -> 
I56: =IFERROR(YEAR('VAV-uitgebreid'!B77),"") ->  | J56: ='VAV-uitgebreid'!G77 ->  | K56: =IF(I56="","",IF($C$29="ja",'VAV-uitgebreid'!M77,1)) ->  | L56: =IF(I56="", "",'VAV-uitgebreid'!Q77) ->  | M56: =IF(I56="", "",'VAV-uitgebreid'!N77) ->  | N56: =IF($C$29="ja",'VAV-uitgebreid'!AA77,'VAV-uitgebreid'!AB77) ->  | O56: =IF('VAV-uitgebreid'!AD77=0,"", 'VAV-uitgebreid'!AD77) ->  | P56: ='VAV-uitgebreid'!AG77 ->  | Q56: =IF('VAV-uitgebreid'!AE77=0,"",'VAV-uitgebreid'!AE77) ->  | R56: ='VAV-uitgebreid'!BD77 ->  | S56: ='VAV-uitgebreid'!AF77 -> 
I57: =IFERROR(YEAR('VAV-uitgebreid'!B78),"") ->  | J57: ='VAV-uitgebreid'!G78 ->  | K57: =IF(I57="","",IF($C$29="ja",'VAV-uitgebreid'!M78,1)) ->  | L57: =IF(I57="", "",'VAV-uitgebreid'!Q78) ->  | M57: =IF(I57="", "",'VAV-uitgebreid'!N78) ->  | N57: =IF($C$29="ja",'VAV-uitgebreid'!AA78,'VAV-uitgebreid'!AB78) ->  | O57: =IF('VAV-uitgebreid'!AD78=0,"", 'VAV-uitgebreid'!AD78) ->  | P57: ='VAV-uitgebreid'!AG78 ->  | Q57: =IF('VAV-uitgebreid'!AE78=0,"",'VAV-uitgebreid'!AE78) ->  | R57: ='VAV-uitgebreid'!BD78 ->  | S57: ='VAV-uitgebreid'!AF78 -> 
I58: =IFERROR(YEAR('VAV-uitgebreid'!B79),"") ->  | J58: ='VAV-uitgebreid'!G79 ->  | K58: =IF(I58="","",IF($C$29="ja",'VAV-uitgebreid'!M79,1)) ->  | L58: =IF(I58="", "",'VAV-uitgebreid'!Q79) ->  | M58: =IF(I58="", "",'VAV-uitgebreid'!N79) ->  | N58: =IF($C$29="ja",'VAV-uitgebreid'!AA79,'VAV-uitgebreid'!AB79) ->  | O58: =IF('VAV-uitgebreid'!AD79=0,"", 'VAV-uitgebreid'!AD79) ->  | P58: ='VAV-uitgebreid'!AG79 ->  | Q58: =IF('VAV-uitgebreid'!AE79=0,"",'VAV-uitgebreid'!AE79) ->  | R58: ='VAV-uitgebreid'!BD79 ->  | S58: ='VAV-uitgebreid'!AF79 -> 
I59: =IFERROR(YEAR('VAV-uitgebreid'!B80),"") ->  | J59: ='VAV-uitgebreid'!G80 ->  | K59: =IF(I59="","",IF($C$29="ja",'VAV-uitgebreid'!M80,1)) ->  | L59: =IF(I59="", "",'VAV-uitgebreid'!Q80) ->  | M59: =IF(I59="", "",'VAV-uitgebreid'!N80) ->  | N59: =IF($C$29="ja",'VAV-uitgebreid'!AA80,'VAV-uitgebreid'!AB80) ->  | O59: =IF('VAV-uitgebreid'!AD80=0,"", 'VAV-uitgebreid'!AD80) ->  | P59: ='VAV-uitgebreid'!AG80 ->  | Q59: =IF('VAV-uitgebreid'!AE80=0,"",'VAV-uitgebreid'!AE80) ->  | R59: ='VAV-uitgebreid'!BD80 ->  | S59: ='VAV-uitgebreid'!AF80 -> 
I60: =IFERROR(YEAR('VAV-uitgebreid'!B81),"") ->  | J60: ='VAV-uitgebreid'!G81 ->  | K60: =IF(I60="","",IF($C$29="ja",'VAV-uitgebreid'!M81,1)) ->  | L60: =IF(I60="", "",'VAV-uitgebreid'!Q81) ->  | M60: =IF(I60="", "",'VAV-uitgebreid'!N81) ->  | N60: =IF($C$29="ja",'VAV-uitgebreid'!AA81,'VAV-uitgebreid'!AB81) ->  | O60: =IF('VAV-uitgebreid'!AD81=0,"", 'VAV-uitgebreid'!AD81) ->  | P60: ='VAV-uitgebreid'!AG81 ->  | Q60: =IF('VAV-uitgebreid'!AE81=0,"",'VAV-uitgebreid'!AE81) ->  | R60: ='VAV-uitgebreid'!BD81 ->  | S60: ='VAV-uitgebreid'!AF81 -> 
I61: =IFERROR(YEAR('VAV-uitgebreid'!B82),"") ->  | J61: ='VAV-uitgebreid'!G82 ->  | K61: =IF(I61="","",IF($C$29="ja",'VAV-uitgebreid'!M82,1)) ->  | L61: =IF(I61="", "",'VAV-uitgebreid'!Q82) ->  | M61: =IF(I61="", "",'VAV-uitgebreid'!N82) ->  | N61: =IF($C$29="ja",'VAV-uitgebreid'!AA82,'VAV-uitgebreid'!AB82) ->  | O61: =IF('VAV-uitgebreid'!AD82=0,"", 'VAV-uitgebreid'!AD82) ->  | P61: ='VAV-uitgebreid'!AG82 ->  | Q61: =IF('VAV-uitgebreid'!AE82=0,"",'VAV-uitgebreid'!AE82) ->  | R61: ='VAV-uitgebreid'!BD82 ->  | S61: ='VAV-uitgebreid'!AF82 -> 
I62: =IFERROR(YEAR('VAV-uitgebreid'!B83),"") ->  | J62: ='VAV-uitgebreid'!G83 ->  | K62: =IF(I62="","",IF($C$29="ja",'VAV-uitgebreid'!M83,1)) ->  | L62: =IF(I62="", "",'VAV-uitgebreid'!Q83) ->  | M62: =IF(I62="", "",'VAV-uitgebreid'!N83) ->  | N62: =IF($C$29="ja",'VAV-uitgebreid'!AA83,'VAV-uitgebreid'!AB83) ->  | O62: =IF('VAV-uitgebreid'!AD83=0,"", 'VAV-uitgebreid'!AD83) ->  | P62: ='VAV-uitgebreid'!AG83 ->  | Q62: =IF('VAV-uitgebreid'!AE83=0,"",'VAV-uitgebreid'!AE83) ->  | R62: ='VAV-uitgebreid'!BD83 ->  | S62: ='VAV-uitgebreid'!AF83 -> 
I63: =IFERROR(YEAR('VAV-uitgebreid'!B84),"") ->  | J63: ='VAV-uitgebreid'!G84 ->  | K63: =IF(I63="","",IF($C$29="ja",'VAV-uitgebreid'!M84,1)) ->  | L63: =IF(I63="", "",'VAV-uitgebreid'!Q84) ->  | M63: =IF(I63="", "",'VAV-uitgebreid'!N84) ->  | N63: =IF($C$29="ja",'VAV-uitgebreid'!AA84,'VAV-uitgebreid'!AB84) ->  | O63: =IF('VAV-uitgebreid'!AD84=0,"", 'VAV-uitgebreid'!AD84) ->  | P63: ='VAV-uitgebreid'!AG84 ->  | Q63: =IF('VAV-uitgebreid'!AE84=0,"",'VAV-uitgebreid'!AE84) ->  | R63: ='VAV-uitgebreid'!BD84 ->  | S63: ='VAV-uitgebreid'!AF84 -> 
I64: =IFERROR(YEAR('VAV-uitgebreid'!B85),"") ->  | J64: ='VAV-uitgebreid'!G85 ->  | K64: =IF(I64="","",IF($C$29="ja",'VAV-uitgebreid'!M85,1)) ->  | L64: =IF(I64="", "",'VAV-uitgebreid'!Q85) ->  | M64: =IF(I64="", "",'VAV-uitgebreid'!N85) ->  | N64: =IF($C$29="ja",'VAV-uitgebreid'!AA85,'VAV-uitgebreid'!AB85) ->  | O64: =IF('VAV-uitgebreid'!AD85=0,"", 'VAV-uitgebreid'!AD85) ->  | P64: ='VAV-uitgebreid'!AG85 ->  | Q64: =IF('VAV-uitgebreid'!AE85=0,"",'VAV-uitgebreid'!AE85) ->  | R64: ='VAV-uitgebreid'!BD85 ->  | S64: ='VAV-uitgebreid'!AF85 -> 
I65: =IFERROR(YEAR('VAV-uitgebreid'!B86),"") ->  | J65: ='VAV-uitgebreid'!G86 ->  | K65: =IF(I65="","",IF($C$29="ja",'VAV-uitgebreid'!M86,1)) ->  | L65: =IF(I65="", "",'VAV-uitgebreid'!Q86) ->  | M65: =IF(I65="", "",'VAV-uitgebreid'!N86) ->  | N65: =IF($C$29="ja",'VAV-uitgebreid'!AA86,'VAV-uitgebreid'!AB86) ->  | O65: =IF('VAV-uitgebreid'!AD86=0,"", 'VAV-uitgebreid'!AD86) ->  | P65: ='VAV-uitgebreid'!AG86 ->  | Q65: =IF('VAV-uitgebreid'!AE86=0,"",'VAV-uitgebreid'!AE86) ->  | R65: ='VAV-uitgebreid'!BD86 ->  | S65: ='VAV-uitgebreid'!AF86 -> 
I66: =IFERROR(YEAR('VAV-uitgebreid'!B87),"") ->  | J66: ='VAV-uitgebreid'!G87 ->  | K66: =IF(I66="","",IF($C$29="ja",'VAV-uitgebreid'!M87,1)) ->  | L66: =IF(I66="", "",'VAV-uitgebreid'!Q87) ->  | M66: =IF(I66="", "",'VAV-uitgebreid'!N87) ->  | N66: =IF($C$29="ja",'VAV-uitgebreid'!AA87,'VAV-uitgebreid'!AB87) ->  | O66: =IF('VAV-uitgebreid'!AD87=0,"", 'VAV-uitgebreid'!AD87) ->  | P66: ='VAV-uitgebreid'!AG87 ->  | Q66: =IF('VAV-uitgebreid'!AE87=0,"",'VAV-uitgebreid'!AE87) ->  | R66: ='VAV-uitgebreid'!BD87 ->  | S66: ='VAV-uitgebreid'!AF87 -> 
I67: =IFERROR(YEAR('VAV-uitgebreid'!B88),"") ->  | J67: ='VAV-uitgebreid'!G88 ->  | K67: =IF(I67="","",IF($C$29="ja",'VAV-uitgebreid'!M88,1)) ->  | L67: =IF(I67="", "",'VAV-uitgebreid'!Q88) ->  | M67: =IF(I67="", "",'VAV-uitgebreid'!N88) ->  | N67: =IF($C$29="ja",'VAV-uitgebreid'!AA88,'VAV-uitgebreid'!AB88) ->  | O67: =IF('VAV-uitgebreid'!AD88=0,"", 'VAV-uitgebreid'!AD88) ->  | P67: ='VAV-uitgebreid'!AG88 ->  | Q67: =IF('VAV-uitgebreid'!AE88=0,"",'VAV-uitgebreid'!AE88) ->  | R67: ='VAV-uitgebreid'!BD88 ->  | S67: ='VAV-uitgebreid'!AF88 -> 
I68: =IFERROR(YEAR('VAV-uitgebreid'!B89),"") ->  | J68: ='VAV-uitgebreid'!G89 ->  | K68: =IF(I68="","",IF($C$29="ja",'VAV-uitgebreid'!M89,1)) ->  | L68: =IF(I68="", "",'VAV-uitgebreid'!Q89) ->  | M68: =IF(I68="", "",'VAV-uitgebreid'!N89) ->  | N68: =IF($C$29="ja",'VAV-uitgebreid'!AA89,'VAV-uitgebreid'!AB89) ->  | O68: =IF('VAV-uitgebreid'!AD89=0,"", 'VAV-uitgebreid'!AD89) ->  | P68: ='VAV-uitgebreid'!AG89 ->  | Q68: =IF('VAV-uitgebreid'!AE89=0,"",'VAV-uitgebreid'!AE89) ->  | R68: ='VAV-uitgebreid'!BD89 ->  | S68: ='VAV-uitgebreid'!AF89 -> 
I69: =IFERROR(YEAR('VAV-uitgebreid'!B90),"") ->  | J69: ='VAV-uitgebreid'!G90 ->  | K69: =IF(I69="","",IF($C$29="ja",'VAV-uitgebreid'!M90,1)) ->  | L69: =IF(I69="", "",'VAV-uitgebreid'!Q90) ->  | M69: =IF(I69="", "",'VAV-uitgebreid'!N90) ->  | N69: =IF($C$29="ja",'VAV-uitgebreid'!AA90,'VAV-uitgebreid'!AB90) ->  | O69: =IF('VAV-uitgebreid'!AD90=0,"", 'VAV-uitgebreid'!AD90) ->  | P69: ='VAV-uitgebreid'!AG90 ->  | Q69: =IF('VAV-uitgebreid'!AE90=0,"",'VAV-uitgebreid'!AE90) ->  | R69: ='VAV-uitgebreid'!BD90 ->  | S69: ='VAV-uitgebreid'!AF90 -> 
I70: =IFERROR(YEAR('VAV-uitgebreid'!B91),"") ->  | J70: ='VAV-uitgebreid'!G91 ->  | K70: =IF(I70="","",IF($C$29="ja",'VAV-uitgebreid'!M91,1)) ->  | L70: =IF(I70="", "",'VAV-uitgebreid'!Q91) ->  | M70: =IF(I70="", "",'VAV-uitgebreid'!N91) ->  | N70: =IF($C$29="ja",'VAV-uitgebreid'!AA91,'VAV-uitgebreid'!AB91) ->  | O70: =IF('VAV-uitgebreid'!AD91=0,"", 'VAV-uitgebreid'!AD91) ->  | P70: ='VAV-uitgebreid'!AG91 ->  | Q70: =IF('VAV-uitgebreid'!AE91=0,"",'VAV-uitgebreid'!AE91) ->  | R70: ='VAV-uitgebreid'!BD91 ->  | S70: ='VAV-uitgebreid'!AF91 -> 
I71: =IFERROR(YEAR('VAV-uitgebreid'!B92),"") ->  | J71: ='VAV-uitgebreid'!G92 ->  | K71: =IF(I71="","",IF($C$29="ja",'VAV-uitgebreid'!M92,1)) ->  | L71: =IF(I71="", "",'VAV-uitgebreid'!Q92) ->  | M71: =IF(I71="", "",'VAV-uitgebreid'!N92) ->  | N71: =IF($C$29="ja",'VAV-uitgebreid'!AA92,'VAV-uitgebreid'!AB92) ->  | O71: =IF('VAV-uitgebreid'!AD92=0,"", 'VAV-uitgebreid'!AD92) ->  | P71: ='VAV-uitgebreid'!AG92 ->  | Q71: =IF('VAV-uitgebreid'!AE92=0,"",'VAV-uitgebreid'!AE92) ->  | R71: ='VAV-uitgebreid'!BD92 ->  | S71: ='VAV-uitgebreid'!AF92 -> 
I72: =IFERROR(YEAR('VAV-uitgebreid'!B93),"") ->  | J72: ='VAV-uitgebreid'!G93 ->  | K72: =IF(I72="","",IF($C$29="ja",'VAV-uitgebreid'!M93,1)) ->  | L72: =IF(I72="", "",'VAV-uitgebreid'!Q93) ->  | M72: =IF(I72="", "",'VAV-uitgebreid'!N93) ->  | N72: =IF($C$29="ja",'VAV-uitgebreid'!AA93,'VAV-uitgebreid'!AB93) ->  | O72: =IF('VAV-uitgebreid'!AD93=0,"", 'VAV-uitgebreid'!AD93) ->  | P72: ='VAV-uitgebreid'!AG93 ->  | Q72: =IF('VAV-uitgebreid'!AE93=0,"",'VAV-uitgebreid'!AE93) ->  | R72: ='VAV-uitgebreid'!BD93 ->  | S72: ='VAV-uitgebreid'!AF93 -> 
I73: =IFERROR(YEAR('VAV-uitgebreid'!B94),"") ->  | J73: ='VAV-uitgebreid'!G94 ->  | K73: =IF(I73="","",IF($C$29="ja",'VAV-uitgebreid'!M94,1)) ->  | L73: =IF(I73="", "",'VAV-uitgebreid'!Q94) ->  | M73: =IF(I73="", "",'VAV-uitgebreid'!N94) ->  | N73: =IF($C$29="ja",'VAV-uitgebreid'!AA94,'VAV-uitgebreid'!AB94) ->  | O73: =IF('VAV-uitgebreid'!AD94=0,"", 'VAV-uitgebreid'!AD94) ->  | P73: ='VAV-uitgebreid'!AG94 ->  | Q73: =IF('VAV-uitgebreid'!AE94=0,"",'VAV-uitgebreid'!AE94) ->  | R73: ='VAV-uitgebreid'!BD94 ->  | S73: ='VAV-uitgebreid'!AF94 -> 
I74: =IFERROR(YEAR('VAV-uitgebreid'!B95),"") ->  | J74: ='VAV-uitgebreid'!G95 ->  | K74: =IF(I74="","",IF($C$29="ja",'VAV-uitgebreid'!M95,1)) ->  | L74: =IF(I74="", "",'VAV-uitgebreid'!Q95) ->  | M74: =IF(I74="", "",'VAV-uitgebreid'!N95) ->  | N74: =IF($C$29="ja",'VAV-uitgebreid'!AA95,'VAV-uitgebreid'!AB95) ->  | O74: =IF('VAV-uitgebreid'!AD95=0,"", 'VAV-uitgebreid'!AD95) ->  | P74: ='VAV-uitgebreid'!AG95 ->  | Q74: =IF('VAV-uitgebreid'!AE95=0,"",'VAV-uitgebreid'!AE95) ->  | R74: ='VAV-uitgebreid'!BD95 ->  | S74: ='VAV-uitgebreid'!AF95 -> 
I75: =IFERROR(YEAR('VAV-uitgebreid'!B96),"") ->  | J75: ='VAV-uitgebreid'!G96 ->  | K75: =IF(I75="","",IF($C$29="ja",'VAV-uitgebreid'!M96,1)) ->  | L75: =IF(I75="", "",'VAV-uitgebreid'!Q96) ->  | M75: =IF(I75="", "",'VAV-uitgebreid'!N96) ->  | N75: =IF($C$29="ja",'VAV-uitgebreid'!AA96,'VAV-uitgebreid'!AB96) ->  | O75: =IF('VAV-uitgebreid'!AD96=0,"", 'VAV-uitgebreid'!AD96) ->  | P75: ='VAV-uitgebreid'!AG96 ->  | Q75: =IF('VAV-uitgebreid'!AE96=0,"",'VAV-uitgebreid'!AE96) ->  | R75: ='VAV-uitgebreid'!BD96 ->  | S75: ='VAV-uitgebreid'!AF96 -> 
I76: =IFERROR(YEAR('VAV-uitgebreid'!B97),"") ->  | J76: ='VAV-uitgebreid'!G97 ->  | K76: =IF(I76="","",IF($C$29="ja",'VAV-uitgebreid'!M97,1)) ->  | L76: =IF(I76="", "",'VAV-uitgebreid'!Q97) ->  | M76: =IF(I76="", "",'VAV-uitgebreid'!N97) ->  | N76: =IF($C$29="ja",'VAV-uitgebreid'!AA97,'VAV-uitgebreid'!AB97) ->  | O76: =IF('VAV-uitgebreid'!AD97=0,"", 'VAV-uitgebreid'!AD97) ->  | P76: ='VAV-uitgebreid'!AG97 ->  | Q76: =IF('VAV-uitgebreid'!AE97=0,"",'VAV-uitgebreid'!AE97) ->  | R76: ='VAV-uitgebreid'!BD97 ->  | S76: ='VAV-uitgebreid'!AF97 -> 
I77: =IFERROR(YEAR('VAV-uitgebreid'!B98),"") ->  | J77: ='VAV-uitgebreid'!G98 ->  | K77: =IF(I77="","",IF($C$29="ja",'VAV-uitgebreid'!M98,1)) ->  | L77: =IF(I77="", "",'VAV-uitgebreid'!Q98) ->  | M77: =IF(I77="", "",'VAV-uitgebreid'!N98) ->  | N77: =IF($C$29="ja",'VAV-uitgebreid'!AA98,'VAV-uitgebreid'!AB98) ->  | O77: =IF('VAV-uitgebreid'!AD98=0,"", 'VAV-uitgebreid'!AD98) ->  | P77: ='VAV-uitgebreid'!AG98 ->  | Q77: =IF('VAV-uitgebreid'!AE98=0,"",'VAV-uitgebreid'!AE98) ->  | R77: ='VAV-uitgebreid'!BD98 ->  | S77: ='VAV-uitgebreid'!AF98 -> 
I78: =IFERROR(YEAR('VAV-uitgebreid'!B99),"") ->  | J78: ='VAV-uitgebreid'!G99 ->  | K78: =IF(I78="","",IF($C$29="ja",'VAV-uitgebreid'!M99,1)) ->  | L78: =IF(I78="", "",'VAV-uitgebreid'!Q99) ->  | M78: =IF(I78="", "",'VAV-uitgebreid'!N99) ->  | N78: =IF($C$29="ja",'VAV-uitgebreid'!AA99,'VAV-uitgebreid'!AB99) ->  | O78: =IF('VAV-uitgebreid'!AD99=0,"", 'VAV-uitgebreid'!AD99) ->  | P78: ='VAV-uitgebreid'!AG99 ->  | Q78: =IF('VAV-uitgebreid'!AE99=0,"",'VAV-uitgebreid'!AE99) ->  | R78: ='VAV-uitgebreid'!BD99 ->  | S78: ='VAV-uitgebreid'!AF99 -> 
I79: =IFERROR(YEAR('VAV-uitgebreid'!B100),"") ->  | J79: ='VAV-uitgebreid'!G100 ->  | K79: =IF(I79="","",IF($C$29="ja",'VAV-uitgebreid'!M100,1)) ->  | L79: =IF(I79="", "",'VAV-uitgebreid'!Q100) ->  | M79: =IF(I79="", "",'VAV-uitgebreid'!N100) ->  | N79: =IF($C$29="ja",'VAV-uitgebreid'!AA100,'VAV-uitgebreid'!AB100) ->  | O79: =IF('VAV-uitgebreid'!AD100=0,"", 'VAV-uitgebreid'!AD100) ->  | P79: ='VAV-uitgebreid'!AG100 ->  | Q79: =IF('VAV-uitgebreid'!AE100=0,"",'VAV-uitgebreid'!AE100) ->  | R79: ='VAV-uitgebreid'!BD100 ->  | S79: ='VAV-uitgebreid'!AF100 -> 
I80: =IFERROR(YEAR('VAV-uitgebreid'!B101),"") ->  | J80: ='VAV-uitgebreid'!G101 ->  | K80: =IF(I80="","",IF($C$29="ja",'VAV-uitgebreid'!M101,1)) ->  | L80: =IF(I80="", "",'VAV-uitgebreid'!Q101) ->  | M80: =IF(I80="", "",'VAV-uitgebreid'!N101) ->  | N80: =IF($C$29="ja",'VAV-uitgebreid'!AA101,'VAV-uitgebreid'!AB101) ->  | O80: =IF('VAV-uitgebreid'!AD101=0,"", 'VAV-uitgebreid'!AD101) ->  | P80: ='VAV-uitgebreid'!AG101 ->  | Q80: =IF('VAV-uitgebreid'!AE101=0,"",'VAV-uitgebreid'!AE101) ->  | R80: ='VAV-uitgebreid'!BD101 ->  | S80: ='VAV-uitgebreid'!AF101 -> 
I81: =IFERROR(YEAR('VAV-uitgebreid'!B102),"") ->  | J81: ='VAV-uitgebreid'!G102 ->  | K81: =IF(I81="","",IF($C$29="ja",'VAV-uitgebreid'!M102,1)) ->  | L81: =IF(I81="", "",'VAV-uitgebreid'!Q102) ->  | M81: =IF(I81="", "",'VAV-uitgebreid'!N102) ->  | N81: =IF($C$29="ja",'VAV-uitgebreid'!AA102,'VAV-uitgebreid'!AB102) ->  | O81: =IF('VAV-uitgebreid'!AD102=0,"", 'VAV-uitgebreid'!AD102) ->  | P81: ='VAV-uitgebreid'!AG102 ->  | Q81: =IF('VAV-uitgebreid'!AE102=0,"",'VAV-uitgebreid'!AE102) ->  | R81: ='VAV-uitgebreid'!BD102 ->  | S81: ='VAV-uitgebreid'!AF102 -> 
I82: =IFERROR(YEAR('VAV-uitgebreid'!B103),"") ->  | J82: ='VAV-uitgebreid'!G103 ->  | K82: =IF(I82="","",IF($C$29="ja",'VAV-uitgebreid'!M103,1)) ->  | L82: =IF(I82="", "",'VAV-uitgebreid'!Q103) ->  | M82: =IF(I82="", "",'VAV-uitgebreid'!N103) ->  | N82: =IF($C$29="ja",'VAV-uitgebreid'!AA103,'VAV-uitgebreid'!AB103) ->  | O82: =IF('VAV-uitgebreid'!AD103=0,"", 'VAV-uitgebreid'!AD103) ->  | P82: ='VAV-uitgebreid'!AG103 ->  | Q82: =IF('VAV-uitgebreid'!AE103=0,"",'VAV-uitgebreid'!AE103) ->  | R82: ='VAV-uitgebreid'!BD103 ->  | S82: ='VAV-uitgebreid'!AF103 -> 
I83: =IFERROR(YEAR('VAV-uitgebreid'!B104),"") ->  | J83: ='VAV-uitgebreid'!G104 ->  | K83: =IF(I83="","",IF($C$29="ja",'VAV-uitgebreid'!M104,1)) ->  | L83: =IF(I83="", "",'VAV-uitgebreid'!Q104) ->  | M83: =IF(I83="", "",'VAV-uitgebreid'!N104) ->  | N83: =IF($C$29="ja",'VAV-uitgebreid'!AA104,'VAV-uitgebreid'!AB104) ->  | O83: =IF('VAV-uitgebreid'!AD104=0,"", 'VAV-uitgebreid'!AD104) ->  | P83: ='VAV-uitgebreid'!AG104 ->  | Q83: =IF('VAV-uitgebreid'!AE104=0,"",'VAV-uitgebreid'!AE104) ->  | R83: ='VAV-uitgebreid'!BD104 ->  | S83: ='VAV-uitgebreid'!AF104 -> 
I84: =IFERROR(YEAR('VAV-uitgebreid'!B105),"") ->  | J84: ='VAV-uitgebreid'!G105 ->  | K84: =IF(I84="","",IF($C$29="ja",'VAV-uitgebreid'!M105,1)) ->  | L84: =IF(I84="", "",'VAV-uitgebreid'!Q105) ->  | M84: =IF(I84="", "",'VAV-uitgebreid'!N105) ->  | N84: =IF($C$29="ja",'VAV-uitgebreid'!AA105,'VAV-uitgebreid'!AB105) ->  | O84: =IF('VAV-uitgebreid'!AD105=0,"", 'VAV-uitgebreid'!AD105) ->  | P84: ='VAV-uitgebreid'!AG105 ->  | Q84: =IF('VAV-uitgebreid'!AE105=0,"",'VAV-uitgebreid'!AE105) ->  | R84: ='VAV-uitgebreid'!BD105 ->  | S84: ='VAV-uitgebreid'!AF105 -> 
I85: =IFERROR(YEAR('VAV-uitgebreid'!B106),"") ->  | J85: ='VAV-uitgebreid'!G106 ->  | K85: =IF(I85="","",IF($C$29="ja",'VAV-uitgebreid'!M106,1)) ->  | L85: =IF(I85="", "",'VAV-uitgebreid'!Q106) ->  | M85: =IF(I85="", "",'VAV-uitgebreid'!N106) ->  | N85: =IF($C$29="ja",'VAV-uitgebreid'!AA106,'VAV-uitgebreid'!AB106) ->  | O85: =IF('VAV-uitgebreid'!AD106=0,"", 'VAV-uitgebreid'!AD106) ->  | P85: ='VAV-uitgebreid'!AG106 ->  | Q85: =IF('VAV-uitgebreid'!AE106=0,"",'VAV-uitgebreid'!AE106) ->  | R85: ='VAV-uitgebreid'!BD106 ->  | S85: ='VAV-uitgebreid'!AF106 -> 
I86: =IFERROR(YEAR('VAV-uitgebreid'!B107),"") ->  | J86: ='VAV-uitgebreid'!G107 ->  | K86: =IF(I86="","",IF($C$29="ja",'VAV-uitgebreid'!M107,1)) ->  | L86: =IF(I86="", "",'VAV-uitgebreid'!Q107) ->  | M86: =IF(I86="", "",'VAV-uitgebreid'!N107) ->  | N86: =IF($C$29="ja",'VAV-uitgebreid'!AA107,'VAV-uitgebreid'!AB107) ->  | O86: =IF('VAV-uitgebreid'!AD107=0,"", 'VAV-uitgebreid'!AD107) ->  | P86: ='VAV-uitgebreid'!AG107 ->  | Q86: =IF('VAV-uitgebreid'!AE107=0,"",'VAV-uitgebreid'!AE107) ->  | R86: ='VAV-uitgebreid'!BD107 ->  | S86: ='VAV-uitgebreid'!AF107 -> 
I87: =IFERROR(YEAR('VAV-uitgebreid'!B108),"") ->  | J87: ='VAV-uitgebreid'!G108 ->  | K87: =IF(I87="","",IF($C$29="ja",'VAV-uitgebreid'!M108,1)) ->  | L87: =IF(I87="", "",'VAV-uitgebreid'!Q108) ->  | M87: =IF(I87="", "",'VAV-uitgebreid'!N108) ->  | N87: =IF($C$29="ja",'VAV-uitgebreid'!AA108,'VAV-uitgebreid'!AB108) ->  | O87: =IF('VAV-uitgebreid'!AD108=0,"", 'VAV-uitgebreid'!AD108) ->  | P87: ='VAV-uitgebreid'!AG108 ->  | Q87: =IF('VAV-uitgebreid'!AE108=0,"",'VAV-uitgebreid'!AE108) ->  | R87: ='VAV-uitgebreid'!BD108 ->  | S87: ='VAV-uitgebreid'!AF108 -> 
I88: =IFERROR(YEAR('VAV-uitgebreid'!B109),"") ->  | J88: ='VAV-uitgebreid'!G109 ->  | K88: =IF(I88="","",IF($C$29="ja",'VAV-uitgebreid'!M109,1)) ->  | L88: =IF(I88="", "",'VAV-uitgebreid'!Q109) ->  | M88: =IF(I88="", "",'VAV-uitgebreid'!N109) ->  | N88: =IF($C$29="ja",'VAV-uitgebreid'!AA109,'VAV-uitgebreid'!AB109) ->  | O88: =IF('VAV-uitgebreid'!AD109=0,"", 'VAV-uitgebreid'!AD109) ->  | P88: ='VAV-uitgebreid'!AG109 ->  | Q88: =IF('VAV-uitgebreid'!AE109=0,"",'VAV-uitgebreid'!AE109) ->  | R88: ='VAV-uitgebreid'!BD109 ->  | S88: ='VAV-uitgebreid'!AF109 -> 
I89: =IFERROR(YEAR('VAV-uitgebreid'!B110),"") ->  | J89: ='VAV-uitgebreid'!G110 ->  | K89: =IF(I89="","",IF($C$29="ja",'VAV-uitgebreid'!M110,1)) ->  | L89: =IF(I89="", "",'VAV-uitgebreid'!Q110) ->  | M89: =IF(I89="", "",'VAV-uitgebreid'!N110) ->  | N89: =IF($C$29="ja",'VAV-uitgebreid'!AA110,'VAV-uitgebreid'!AB110) ->  | O89: =IF('VAV-uitgebreid'!AD110=0,"", 'VAV-uitgebreid'!AD110) ->  | P89: ='VAV-uitgebreid'!AG110 ->  | Q89: =IF('VAV-uitgebreid'!AE110=0,"",'VAV-uitgebreid'!AE110) ->  | R89: ='VAV-uitgebreid'!BD110 ->  | S89: ='VAV-uitgebreid'!AF110 -> 
I90: =IFERROR(YEAR('VAV-uitgebreid'!B111),"") ->  | J90: ='VAV-uitgebreid'!G111 ->  | K90: =IF(I90="","",IF($C$29="ja",'VAV-uitgebreid'!M111,1)) ->  | L90: =IF(I90="", "",'VAV-uitgebreid'!Q111) ->  | M90: =IF(I90="", "",'VAV-uitgebreid'!N111) ->  | N90: =IF($C$29="ja",'VAV-uitgebreid'!AA111,'VAV-uitgebreid'!AB111) ->  | O90: =IF('VAV-uitgebreid'!AD111=0,"", 'VAV-uitgebreid'!AD111) ->  | P90: ='VAV-uitgebreid'!AG111 ->  | Q90: =IF('VAV-uitgebreid'!AE111=0,"",'VAV-uitgebreid'!AE111) ->  | R90: ='VAV-uitgebreid'!BD111 ->  | S90: ='VAV-uitgebreid'!AF111 -> 
I91: =IFERROR(YEAR('VAV-uitgebreid'!B112),"") ->  | J91: ='VAV-uitgebreid'!G112 ->  | K91: =IF(I91="","",IF($C$29="ja",'VAV-uitgebreid'!M112,1)) ->  | L91: =IF(I91="", "",'VAV-uitgebreid'!Q112) ->  | M91: =IF(I91="", "",'VAV-uitgebreid'!N112) ->  | N91: =IF($C$29="ja",'VAV-uitgebreid'!AA112,'VAV-uitgebreid'!AB112) ->  | O91: =IF('VAV-uitgebreid'!AD112=0,"", 'VAV-uitgebreid'!AD112) ->  | P91: ='VAV-uitgebreid'!AG112 ->  | Q91: =IF('VAV-uitgebreid'!AE112=0,"",'VAV-uitgebreid'!AE112) ->  | R91: ='VAV-uitgebreid'!BD112 ->  | S91: ='VAV-uitgebreid'!AF112 -> 
I92: =IFERROR(YEAR('VAV-uitgebreid'!B113),"") ->  | J92: ='VAV-uitgebreid'!G113 ->  | K92: =IF(I92="","",IF($C$29="ja",'VAV-uitgebreid'!M113,1)) ->  | L92: =IF(I92="", "",'VAV-uitgebreid'!Q113) ->  | M92: =IF(I92="", "",'VAV-uitgebreid'!N113) ->  | N92: =IF($C$29="ja",'VAV-uitgebreid'!AA113,'VAV-uitgebreid'!AB113) ->  | O92: =IF('VAV-uitgebreid'!AD113=0,"", 'VAV-uitgebreid'!AD113) ->  | P92: ='VAV-uitgebreid'!AG113 ->  | Q92: =IF('VAV-uitgebreid'!AE113=0,"",'VAV-uitgebreid'!AE113) ->  | R92: ='VAV-uitgebreid'!BD113 ->  | S92: ='VAV-uitgebreid'!AF113 -> 
I93: =IFERROR(YEAR('VAV-uitgebreid'!B114),"") ->  | J93: ='VAV-uitgebreid'!G114 ->  | K93: =IF(I93="","",IF($C$29="ja",'VAV-uitgebreid'!M114,1)) ->  | L93: =IF(I93="", "",'VAV-uitgebreid'!Q114) ->  | M93: =IF(I93="", "",'VAV-uitgebreid'!N114) ->  | N93: =IF($C$29="ja",'VAV-uitgebreid'!AA114,'VAV-uitgebreid'!AB114) ->  | O93: =IF('VAV-uitgebreid'!AD114=0,"", 'VAV-uitgebreid'!AD114) ->  | P93: ='VAV-uitgebreid'!AG114 ->  | Q93: =IF('VAV-uitgebreid'!AE114=0,"",'VAV-uitgebreid'!AE114) ->  | R93: ='VAV-uitgebreid'!BD114 ->  | S93: ='VAV-uitgebreid'!AF114 -> 
I95: Disclaimer
I96: Aan deze berekening kunnen geen rechten ontleend worden. Sedgwick aanvaardt daarom
I97: geen enkele aansprakelijkheid bij het gebruik van deze rekenmodule.

Sheet VAV-uitgebreid (hidden)
B2: VAV
B4: verschenen | D4: =V123 -> 0
B5: toekomstig | D5: =AA123-D4 -> 0
B6: totaal | D6: =SUM(D4:D5) -> 0
AE8: Tabel berekening rendement op vermogen over 2017
B10: Geslacht | E10: =IF('CW-berekening'!D7="man","m","v") -> v | G10: v/m | J10: =DATE(H11,1,1) -> 1900-01-01 | AE10: Schijf | AF10: Uw (deel van de) grondslag | AG10: Percentage | AH10: Percentage | AI10: Percentage
B11: Geboortedatum | E11: ='CW-berekening'!D6 -> 00:00:00 | H11: =YEAR(E11) -> 1900 | J11: =DATE(H11,7,1) -> 1900-07-01 | AF11: sparen en beleggen | AG11: 0.0163 | AH11: 0.0539 | AI11: gemiddeld
K12: =YEAR(G13) -> 1900 | AI12: rendement
B13: Verlies ArbeidsVermogen (jaar) | E13: ='CW-berekening'!D12 -> 0 | G13: =E15 -> 1900-01-01 | H13: =DATE(YEAR(G13)+'CW-berekening'!D13,MONTH(G13),DAY(G13)) -> 1900-01-01 | I13: =(H13-G13)/365.25-1 -> -1 | K13: =K12+'CW-berekening'!D13 -> 1900 | AE13: 1 | AF13: Tot en met € 75.000 | AG13: 0.67 | AH13: 0.33 | AI13: 0.02871
AE14: 3 | AF14: Vanaf € 975.001 | AG14: 0 | AH14: 1 | AI14: 0.0539
B15: Startdatum | E15: =DATE('CW-berekening'!D9,1,1) -> 1900-01-01
B16: Kapitalisatiedatum | E16: =DATE('CW-berekening'!D10,1,1) -> 1900-01-01
B17: Leeftijd kap.dat. | E17: =IF(AND(E11>J10,E11<=J11),(DATEDIF($E$11,E16,"y"))+1,DATEDIF($E$11,E16,"y")) -> 0
B18: Overlevingskans kap.dat.vrouw | E18: =VLOOKUP(E17,'Sterftetabel Vrouw'!$A$4:$C$124,3) -> 10000000
B19: Overlevingskans kap.dat. man | E19: =VLOOKUP(E17,'Sterftetabel Man'!$A$4:$C$124,3) -> 10000000
B20: Rendement 1 | E20: ='CW-berekening'!D16 -> 0 | G20: =DATE(YEAR(E16)+'CW-berekening'!E16,MONTH(G13),DAY(G13)) -> 1900-01-01 | K20: 0.0013 | L20: 0.67 | M20: =+K20*L20 -> 0.000871 | AI20: waarom geen box III voor kapitalisatiedatum?
K21: 0.056 | L21: 0.33 | M21: =+K21*L21 -> 0.01848
B22: Inflatie 1 | E22: ='CW-berekening'!D19 -> 0 | G22: =DATE(YEAR(E16)+'CW-berekening'!E19,MONTH(G13),DAY(G13)) -> 1900-01-01 | M22: =SUM(M20:M21) -> 0.019351
B24: Heffingvrij vermogen box 3 | E24: 30360 | K24: 0.0013 | L24: 0.21 | M24: =+K24*L24 -> 0.000273
B25: Malen heffingvrij vermogen box 3 | E25: =IF('CW-berekening'!D24="nee",0,IF('CW-berekening'!D25="Ja, enkele vrijstelling (€30.360)",1,2)) -> 1 | G25: 0x/1x/2x | K25: 0.056 | L25: 0.79 | M25: =+K25*L25 -> 0.04424 | AN25: als kleiner dan kapdatum of einde schadedatum? | AR25: invloed | AT25: voor kap geen boixIII? | AV25: geen tussenstap contant maken?
E26: 71650 | G26: 989736 | H26: 989737 | M26: =SUM(M24:M25) -> 0.044513 | Z26: nut?? | AR26: rendement | BJ26: en het rendement over box III kolom AO!!!!
B27: Fictief rendement box 3 | E27: =M22 -> 0.019351 | G27: =M26 -> 0.044513 | H27: 0.056 | T27: ????? | BJ27: reeds verdisconteerd in box III schade?!
B28: Heffing box 3 | E28: 0.3 | G28: 0.3 | H28: 0.3 | Z28: inflatie | AM28: Te bepalen over het fiscaal inkomen????
Z29: sterfte | AB29: zonder sterftekans
B30: Datum | C30: Jaar | D30: Looptijd | E30: Leeftijd | F30: Leeftijd | G30: VAV | J30: Totaal | K30: Aantal | L30: Aantal | M30: Overle- | N30: Inflatie | O30: Inflatie- | P30: Inflatie- | Q30: Rendement | R30: Rendement- | S30: Rendement- | T30: Kapitalis. | U30: Cum. | V30: Schade | W30: Schade | X30: Kapitalis. | Y30: Zonder | Z30: Schade | AA30: Schade | AB30: Schade | AD30: Vermogen | AE30: Schade | AF30: Rendement | AG30: Vermogen | AI30: Vermogen | AJ30: 1e schijf | AK30: Heffingvrij | AL30: Fiscaal | AM30: FC1 | AN30: FC1 | AO30: FC1 | AP30: FC1 | AQ30: FC1 | AR30: FC1 | AS30: FC1 | AT30: FC2 | AU30: FC2 | AV30: FC3 | AW30: FC3 | AX30: FC4 | AY30: FC4 | AZ30: FC5 | BA30: FC5 | BC30: FC kapitaal | BD30: Fiscale | BE30: FC kapitaal | BG30: Jaar | BH30: Vermogen | BI30: Schade | BJ30: Rendement | BK30: Vermogen
F31: tbv sterftekans | J31: schade | K31: jaar | L31: kap.dat | M31: vingskans | O31: factor | P31: factor cum. | R31: factor | S31: factor cum. | T31: factor 1 | U31: kap.fact. | V31: verschenen | W31: met kans | X31: factor 2 | Y31: sterftekans | AA31: herrekend | AB31: herrekend | AD31: begin | AG31: eind | AI31: 01-01 | AK31: vermogen | AL31: vermogen | AM31: bepaling % | AN31: 1e | AO31: 2e | AP31: 3e | AQ31: totaal | AR31: contant | AS31: kapitaal | AU31: kapitaal | AW31: kapitaal | AY31: kapitaal | BA31: kapitaal | BC31: begin | BD31: schade | BE31: eind | BH31: begin | BK31: eind
B32: T | C32: T | D32: T | E32: T | G32: € | J32: € | K32: A | L32: A | M32: F | N32: % | O32: F | P32: F | Q32: % | R32: F | S32: F | T32: F | U32: F | V32: € | W32: € | X32: F | Z32: € | AA32: € | AD32: € | AE32: € | AF32: € | AG32: € | AI32: € | AJ32: € | AK32: € | AL32: € | AN32: € | AO32: € | AP32: € | AR32: € | AS32: € | AT32: € | AU32: € | AV32: € | AW32: € | AX32: € | AY32: € | AZ32: € | BA32: € | BC32: € | BD32: € | BE32: € | BG32: T | BH32: € | BI32: € | BJ32: € | BK32: €
A33: =E15 -> 1900-01-01 | B33: =IF(A33>=$H$13," ",A33) ->  | C33: =YEAR(G13) -> 1900 | D33: =IF(A33>=$H$13," ",1) ->  | E33: =YEAR(A33)-YEAR($E$11) -> 0 | F33: =IF(AND($E$11>$J$10,$E$11<=$J$11),(DATEDIF($E$11,A33,"y"))+1,DATEDIF($E$11,A33,"y")) -> 0 | G33: =IF(A33>=$H$13," ",IF(B33>=$G$13,IF(B33<$H$13,$E$13,0),0)) ->  | J33: =IF(A33>=$H$13," ",SUM(G33:I33)) ->  | K33: =IF(A33>=$H$13," ",IF($E$10="M",VLOOKUP(F33,'Sterftetabel Man'!$A$4:$C$124,3),VLOOKUP(F33,'Sterftetabel Vrouw'!A4:$C$124,3))) ->  | L33: =IF(A33>=$H$13," ",IF($E$10="m",$E$19,$E$18)) ->  | M33: =IF(A33>=$H$13," ",IF(B33>$E$16,K33/L33,1)) ->  | N33: =IF(B33<$E$16,0,$E$22) -> 0 | O33: =IF(A33>=$H$13," ",(1+N33)^(YEAR(B33)+1-YEAR($E$16))) ->  | P33: =IF(A33>=$H$13," ",O33) ->  | Q33: =IF(B33<$E$16,0,$E$20) -> 0 | R33: =IF(A33>=$H$13," ",(1+Q33)^(YEAR(B33)+1-YEAR($E$16))) ->  | S33: =IF(A33>=$H$13," ",R33) ->  | T33: =IF(A33>=$H$13," ",M33*O33/R33) ->  | U33: =IF(A33>=$H$13," ",T33) ->  | V33: =IF(A33>=$H$13," ",IF(B33<$E$16,W33," ")) ->  | W33: =IF(A33>=$H$13," ",J33*T33) ->  | X33: =IF(A33>=$H$13," ",M33*P33/S33) ->  | Y33: =IF(A33>=$H$13," ",P33/S33) ->  | Z33: =IF(A33>=$H$13," ",J33*P33*M33) ->  | AA33: =IF(A33>=$H$13," ",J33*X33) ->  | AB33: =IF(A33>=$H$13," ",J33*Y33) ->  | AD33: =IF(A33>=$H$13," ",AA123) ->  | AE33: =IF(Z33=" ",0,Z33) -> 0 | AF33: =IF(A33>=$H$13," ",IF(B33<$E$16,0,AD33*Q33)) ->  | AG33: =IF(A33>=$H$13," ",AD33-AE33+AF33) ->  | AI33: =IF(B33<$E$16,0,AD33) ->  | AJ33: =IF(A33>=$H$13," ",IF(AI33<$E$26,AI33,$E$26)) ->  | AK33: =IF(A33>=$H$13," ",IF(AI33<1,0,IF($E$25=0,0,IF($E$25=1,$E$24,2*$E$24)))) ->  | AL33: =IF(A33>=$H$13," ",AI33-AK33) ->  | AM33: =IF(A33>=$H$13," ",IF(AI33<$H$26,IF(AI33<$E$26,$E$27,$G$27),$H$27)) ->  | AN33: =IF(A33>=$H$13," ",IF(B33<$H$13,IF(AI33-AK33<AJ33,IF(AI33-AK33<0,0,(AI33-AK33)*$E$27*0.3),AJ33*$E$27*0.3),0)) ->  | AO33: =IF(A33>=$H$13," ",IF(B33<$H$13,IF(AL33<AJ33,0,IF(AL33>$G$26,($G$26-AJ33)*$G$27*0.3,(AL33-AJ33)*$G$27*0.3)),0)) ->  | AP33: =IF(A33>=$H$13," ",IF(AL33>$G$26,(AL33-$G$26)*$H$27*0.3,0)) ->  | AQ33: =IF(A33>=$H$13," ",+AN33+AO33+AP33) ->  | AR33: =IF(A33>=$H$13," ",AQ33/S33) ->  | AS33: =IF(A33>=$H$13," ",AR123) ->  | AT33: =IF(A33>=$H$13," ",IF(B33<$E$16,0,+AS33*AM33*0.3)) ->  | AU33: =IF(A33>=$H$13," ",+AT123) ->  | AV33: =IF(A33>=$H$13," ",IF(B33<$E$16,0,AU33*AM33*0.3)) ->  | AW33: =IF(A33>=$H$13," ",+AV123) ->  | AX33: =IF(A33>=$H$13," ",IF(B33<$E$16,0,+AW33*AM33*0.3)) ->  | AY33: =IF(A33>=$H$13," ",+AX123) ->  | AZ33: =IF(A33>=$H$13," ",IF(B33<$E$16,0,+AY33*AM33*0.3)) ->  | BA33: =IF(A33>=$H$13," ",+AZ123) ->  | BC33: =IF(A33>=$H$13," ",SUM(AR123:AZ123)) ->  | BD33: =IF(A33>=$H$13," ",+AR33+AT33+AV33+AX33+AZ33) ->  | BE33: =IF(A33>=$H$13," ",BC33-BD33) ->  | BG33: =IF(A33>=$H$13," ",YEAR($E$15)) ->  | BH33: =IF(A33>=$H$13," ",+BC33+AD33) ->  | BI33: =IF(A33>=$H$13," ",+BD33+AE33) ->  | BJ33: =+AF33 ->  | BK33: =IF(A33>=$H$13," ",+AG33+BE33) -> 
A34: =DATE(C34,1,1) -> 1901-01-01 | B34: =IF(A34>=$H$13," ",A34) ->  | C34: =C33+1 -> 1901 | D34: =IF(A34>=$H$13," ",D33+1) ->  | E34: =YEAR(A34)-YEAR($E$11) -> 1 | F34: =IF(AND($E$11>$J$10,$E$11<=$J$11),(DATEDIF($E$11,A34,"y"))+1,DATEDIF($E$11,A34,"y")) -> 1 | G34: =IF(A34>=$H$13," ",IF(B34>=$G$13,IF(B34<$H$13,$E$13,0),0)) ->  | J34: =IF(A34>=$H$13," ",SUM(G34:I34)) ->  | K34: =IF(A34>=$H$13," ",IF($E$10="M",VLOOKUP(F34,'Sterftetabel Man'!$A$4:$C$124,3),VLOOKUP(F34,'Sterftetabel Vrouw'!A5:$C$124,3))) ->  | N34: =IF(B34<$E$16,0,$E$22) -> 0 | P34: =P33*(1+N34) ->  | Q34: =IF(B34<$E$16,0,$E$20) -> 0 | S34: =S33*(1+Q34) ->  | T34: =IF(A34>=$H$13," ",M34*O34/R34) ->  | U34: =IF(A34>=$H$13," ",T34) ->  | W34: =IF(A34>=$H$13," ",J34*T34) ->  | X34: =IF(A34>=$H$13," ",M34*P34/S34) ->  | Y34: =IF(A34>=$H$13," ",P34/S34) ->  | Z34: =IF(A34>=$H$13," ",J34*P34*M34) ->  | AA34: =IF(A34>=$H$13," ",J34*X34) ->  | AB34: =IF(A34>=$H$13," ",J34*Y34) ->  | AD34: =IF(A34>=$H$13," ",AG33) ->  | AE34: =IF(Z34=" ",0,Z34) -> 0 | AG34: =IF(A34>=$H$13," ",AD34-AE34+AF34) ->  | AI34: =IF(B34<$E$16,0,AD34) ->  | AL34: =IF(A34>=$H$13," ",AI34-AK34) ->  | AQ34: =IF(A34>=$H$13," ",+AN34+AO34+AP34) ->  | AR34: =IF(A34>=$H$13," ",AQ34/S34) ->  | AS34: =IF(A34>=$H$13," ",+AS33-AR33) ->  | AU34: =IF(A34>=$H$13," ",+AU33-AT33) ->  | AW34: =IF(A34>=$H$13," ",+AW33-AV33) ->  | AY34: =IF(A34>=$H$13," ",+AY33-AX33) ->  | BA34: =IF(A34>=$H$13," ",+AZ124) ->  | BC34: =IF(A34>=$H$13," ",+BE33) ->  | BD34: =IF(A34>=$H$13," ",+AR34+AT34+AV34+AX34+AZ34) ->  | BE34: =IF(A34>=$H$13," ",BC34-BD34) ->  | BG34: =IF(A34>=$H$13," ",BG33+1) ->  | BH34: =IF(A34>=$H$13," ",+BC34+AD34) ->  | BI34: =IF(A34>=$H$13," ",+BD34+AE34) ->  | BK34: =IF(A34>=$H$13," ",+AG34+BE34) -> 
A35: =DATE(C35,1,1) -> 1902-01-01 | C35: =C34+1 -> 1902 | D35: =IF(A35>=$H$13," ",D34+1) ->  | E35: 2 | F35: 2 | K35: =IF(A35>=$H$13," ",IF($E$10="M",VLOOKUP(F35,'Sterftetabel Man'!$A$4:$C$124,3),VLOOKUP(F35,'Sterftetabel Vrouw'!A6:$C$124,3))) ->  | N35: 0 | P35: =P34*(1+N35) ->  | Q35: 0 | S35: =S34*(1+Q35) ->  | Y35: =IF(A35>=$H$13," ",P35/S35) ->  | AB35: =IF(A35>=$H$13," ",J35*Y35) ->  | AD35: =IF(A35>=$H$13," ",AG34) ->  | AE35: 0 | AI35: =IF(B35<$E$16,0,AD35) ->  | AS35: =IF(A35>=$H$13," ",+AS34-AR34) ->  | AU35: =IF(A35>=$H$13," ",+AU34-AT34) ->  | AW35: =IF(A35>=$H$13," ",+AW34-AV34) ->  | AY35: =IF(A35>=$H$13," ",+AY34-AX34) ->  | BC35: =IF(A35>=$H$13," ",+BE34) ->  | BG35: =IF(A35>=$H$13," ",BG34+1) -> 
A36: 1903-01-01 | C36: 1903 | E36: 3 | F36: 3 | K36: =IF(A36>=$H$13," ",IF($E$10="M",VLOOKUP(F36,'Sterftetabel Man'!$A$4:$C$124,3),VLOOKUP(F36,'Sterftetabel Vrouw'!A7:$C$124,3))) ->  | N36: 0 | P36: =P35*(1+N36) ->  | Q36: 0 | Y36: =IF(A36>=$H$13," ",P36/S36) ->  | AE36: 0
A37: 1904-01-01 | C37: 1904 | E37: 4 | F37: 4 | K37: =IF(A37>=$H$13," ",IF($E$10="M",VLOOKUP(F37,'Sterftetabel Man'!$A$4:$C$124,3),VLOOKUP(F37,'Sterftetabel Vrouw'!A8:$C$124,3))) ->  | N37: 0 | P37: =P36*(1+N37) ->  | Q37: 0 | AE37: 0
A38: 1905-01-01 | C38: 1905 | E38: 5 | F38: 5 | K38: =IF(A38>=$H$13," ",IF($E$10="M",VLOOKUP(F38,'Sterftetabel Man'!$A$4:$C$124,3),VLOOKUP(F38,'Sterftetabel Vrouw'!A9:$C$124,3))) ->  | N38: 0 | P38: =P37*(1+N38) ->  | Q38: 0 | AE38: 0
A39: 1906-01-01 | C39: 1906 | E39: 6 | F39: 6 | K39: =IF(A39>=$H$13," ",IF($E$10="M",VLOOKUP(F39,'Sterftetabel Man'!$A$4:$C$124,3),VLOOKUP(F39,'Sterftetabel Vrouw'!A10:$C$124,3))) ->  | N39: 0 | Q39: 0 | AE39: 0
A40: 1907-01-01 | C40: 1907 | E40: 7 | F40: 7 | K40: =IF(A40>=$H$13," ",IF($E$10="M",VLOOKUP(F40,'Sterftetabel Man'!$A$4:$C$124,3),VLOOKUP(F40,'Sterftetabel Vrouw'!A11:$C$124,3))) ->  | N40: 0 | Q40: 0 | AE40: 0 | AN40: =IF(A40>=$H$13," ",IF(B40<$H$13,IF(AI40-AK40<AJ40,IF(AI40-AK40<0,0,(AI40-AK40)*$E$27*0.3),AJ40*$E$27*0.3),0)) ->  | AO40: =IF(A40>=$H$13," ",IF(B40<$H$13,IF(AL40<AJ40,0,IF(AL40>$G$26,($G$26-AJ40)*$G$27*0.3,(AL40-AJ40)*$G$27*0.3)),0)) -> 
A41: 1908-01-01 | C41: 1908 | E41: 8 | F41: 8 | K41: =IF(A41>=$H$13," ",IF($E$10="M",VLOOKUP(F41,'Sterftetabel Man'!$A$4:$C$124,3),VLOOKUP(F41,'Sterftetabel Vrouw'!A12:$C$124,3))) ->  | N41: 0 | Q41: 0 | AE41: 0
A42: 1909-01-01 | B42: =IF(A42>=$H$13," ",A42) ->  | C42: 1909 | E42: 9 | F42: 9 | K42: =IF(A42>=$H$13," ",IF($E$10="M",VLOOKUP(F42,'Sterftetabel Man'!$A$4:$C$124,3),VLOOKUP(F42,'Sterftetabel Vrouw'!A13:$C$124,3))) ->  | N42: 0 | Q42: 0 | AD42: =IF(A42>=$H$13,0,AG41) -> 0 | AE42: 0 | AI42: 0
A43: 1910-01-01 | C43: 1910 | E43: 10 | F43: 10 | K43: =IF(A43>=$H$13," ",IF($E$10="M",VLOOKUP(F43,'Sterftetabel Man'!$A$4:$C$124,3),VLOOKUP(F43,'Sterftetabel Vrouw'!A14:$C$124,3))) ->  | N43: 0 | Q43: 0 | AD43: =IF(A43>=$H$13,0,AG42) -> 0 | AE43: 0 | AI43: 0
A44: 1911-01-01 | C44: 1911 | E44: 11 | F44: 11 | K44: =IF(A44>=$H$13," ",IF($E$10="M",VLOOKUP(F44,'Sterftetabel Man'!$A$4:$C$124,3),VLOOKUP(F44,'Sterftetabel Vrouw'!A15:$C$124,3))) ->  | N44: 0 | Q44: 0 | AD44: 0 | AE44: 0 | AI44: 0
A45: 1912-01-01 | C45: 1912 | E45: 12 | F45: 12 | K45: =IF(A45>=$H$13," ",IF($E$10="M",VLOOKUP(F45,'Sterftetabel Man'!$A$4:$C$124,3),VLOOKUP(F45,'Sterftetabel Vrouw'!A16:$C$124,3))) ->  | N45: 0 | Q45: =IF(B45<$E$16,0,$E$20) -> 0 | AD45: 0 | AE45: 0 | AI45: 0
A46: 1913-01-01 | C46: 1913 | E46: 13 | F46: 13 | K46: =IF(A46>=$H$13," ",IF($E$10="M",VLOOKUP(F46,'Sterftetabel Man'!$A$4:$C$124,3),VLOOKUP(F46,'Sterftetabel Vrouw'!A17:$C$124,3))) ->  | N46: 0 | Q46: 0 | AD46: 0 | AE46: 0 | AI46: 0
A47: 1914-01-01 | C47: 1914 | E47: 14 | F47: 14 | K47: =IF(A47>=$H$13," ",IF($E$10="M",VLOOKUP(F47,'Sterftetabel Man'!$A$4:$C$124,3),VLOOKUP(F47,'Sterftetabel Vrouw'!A18:$C$124,3))) ->  | N47: 0 | Q47: 0 | AD47: 0 | AE47: 0 | AI47: 0
A48: 1915-01-01 | C48: 1915 | E48: 15 | F48: 15 | K48: =IF(A48>=$H$13," ",IF($E$10="M",VLOOKUP(F48,'Sterftetabel Man'!$A$4:$C$124,3),VLOOKUP(F48,'Sterftetabel Vrouw'!A19:$C$124,3))) ->  | N48: 0 | Q48: 0 | AD48: 0 | AE48: 0 | AI48: 0
A49: 1916-01-01 | C49: 1916 | E49: 16 | F49: 16 | G49: =IF(A49>=$H$13," ",IF(B49>=$G$13,IF(B49<$H$13,$E$13,0),0)) ->  | K49: =IF(A49>=$H$13," ",IF($E$10="M",VLOOKUP(F49,'Sterftetabel Man'!$A$4:$C$124,3),VLOOKUP(F49,'Sterftetabel Vrouw'!A20:$C$124,3))) ->  | N49: 0 | Q49: 0 | AD49: 0 | AE49: 0 | AI49: 0
A50: 1917-01-01 | C50: 1917 | E50: 17 | F50: 17 | K50: =IF(A50>=$H$13," ",IF($E$10="M",VLOOKUP(F50,'Sterftetabel Man'!$A$4:$C$124,3),VLOOKUP(F50,'Sterftetabel Vrouw'!A21:$C$124,3))) ->  | N50: 0 | Q50: 0 | AD50: 0 | AE50: 0 | AI50: =IF(B50<$E$16,0,AD50) -> 0
A51: 1918-01-01 | B51: =IF(A51>=$H$13," ",A51) ->  | C51: 1918 | E51: 18 | F51: 18 | K51: =IF(A51>=$H$13," ",IF($E$10="M",VLOOKUP(F51,'Sterftetabel Man'!$A$4:$C$124,3),VLOOKUP(F51,'Sterftetabel Vrouw'!A22:$C$124,3))) ->  | N51: 0 | Q51: 0 | AD51: 0 | AE51: 0 | AI51: =IF(B51<$E$16,0,AD51) -> 0 | BE51: =IF(A51>=$H$13," ",BC51-BD51) -> 
A52: 1919-01-01 | C52: 1919 | E52: 19 | F52: 19 | K52: =IF(A52>=$H$13," ",IF($E$10="M",VLOOKUP(F52,'Sterftetabel Man'!$A$4:$C$124,3),VLOOKUP(F52,'Sterftetabel Vrouw'!A23:$C$124,3))) ->  | N52: 0 | P52: =P51*(1+N52) ->  | Q52: 0 | AD52: =IF(A52>=$H$13,0,AG51) -> 0 | AE52: 0 | AI52: =IF(B52<$E$16,0,AD52) -> 0
A53: 1920-01-01 | C53: 1920 | E53: 20 | F53: 20 | K53: =IF(A53>=$H$13," ",IF($E$10="M",VLOOKUP(F53,'Sterftetabel Man'!$A$4:$C$124,3),VLOOKUP(F53,'Sterftetabel Vrouw'!A24:$C$124,3))) ->  | N53: 0 | P53: =P52*(1+N53) ->  | Q53: 0 | AD53: 0 | AE53: 0 | AI53: 0
A54: 1921-01-01 | C54: 1921 | E54: 21 | F54: 21 | K54: =IF(A54>=$H$13," ",IF($E$10="M",VLOOKUP(F54,'Sterftetabel Man'!$A$4:$C$124,3),VLOOKUP(F54,'Sterftetabel Vrouw'!A25:$C$124,3))) ->  | N54: =IF(B54<$E$16,0,$E$22) -> 0 | P54: =P53*(1+N54) ->  | Q54: 0 | S54: =S53*(1+Q54) ->  | AD54: 0 | AE54: 0 | AI54: 0 | BC54: =IF(A54>=$H$13," ",+BE53) -> 
A55: 1922-01-01 | C55: 1922 | E55: 22 | F55: 22 | K55: =IF(A55>=$H$13," ",IF($E$10="M",VLOOKUP(F55,'Sterftetabel Man'!$A$4:$C$124,3),VLOOKUP(F55,'Sterftetabel Vrouw'!A26:$C$124,3))) ->  | N55: 0 | Q55: 0 | AD55: 0 | AE55: 0 | AI55: 0 | BI55: =IF(A55>=$H$13," ",+BD55+AE55) -> 
A56: 1923-01-01 | C56: 1923 | E56: 23 | F56: 23 | K56: =IF(A56>=$H$13," ",IF($E$10="M",VLOOKUP(F56,'Sterftetabel Man'!$A$4:$C$124,3),VLOOKUP(F56,'Sterftetabel Vrouw'!A27:$C$124,3))) ->  | N56: 0 | Q56: =IF(B56<$E$16,0,$E$20) -> 0 | AD56: 0 | AE56: 0 | AI56: 0
A57: 1924-01-01 | C57: 1924 | E57: 24 | F57: 24 | K57: =IF(A57>=$H$13," ",IF($E$10="M",VLOOKUP(F57,'Sterftetabel Man'!$A$4:$C$124,3),VLOOKUP(F57,'Sterftetabel Vrouw'!A28:$C$124,3))) ->  | N57: 0 | Q57: 0 | T57: =IF(A57>=$H$13," ",M57*O57/R57) ->  | AD57: 0 | AE57: 0 | AI57: 0
A58: 1925-01-01 | B58: =IF(A58>=$H$13," ",A58) ->  | C58: 1925 | E58: 25 | F58: 25 | K58: =IF(A58>=$H$13," ",IF($E$10="M",VLOOKUP(F58,'Sterftetabel Man'!$A$4:$C$124,3),VLOOKUP(F58,'Sterftetabel Vrouw'!A29:$C$124,3))) ->  | N58: 0 | Q58: 0 | AD58: 0 | AE58: 0 | AI58: 0 | AU58: =IF(A57>=$H$13," ",+AU57-AT57) -> 
A59: 1926-01-01 | C59: 1926 | E59: 26 | F59: 26 | K59: =IF(A59>=$H$13," ",IF($E$10="M",VLOOKUP(F59,'Sterftetabel Man'!$A$4:$C$124,3),VLOOKUP(F59,'Sterftetabel Vrouw'!A30:$C$124,3))) ->  | N59: 0 | Q59: 0 | AD59: 0 | AE59: 0 | AI59: 0
A60: 1927-01-01 | C60: 1927 | E60: 27 | F60: 27 | K60: =IF(A60>=$H$13," ",IF($E$10="M",VLOOKUP(F60,'Sterftetabel Man'!$A$4:$C$124,3),VLOOKUP(F60,'Sterftetabel Vrouw'!A31:$C$124,3))) ->  | N60: 0 | Q60: 0 | AD60: 0 | AE60: 0 | AI60: 0 | AL60: =IF(A60>=$H$13," ",AI60-AK60) -> 
A61: 1928-01-01 | C61: 1928 | E61: 28 | F61: 28 | K61: =IF(A61>=$H$13," ",IF($E$10="M",VLOOKUP(F61,'Sterftetabel Man'!$A$4:$C$124,3),VLOOKUP(F61,'Sterftetabel Vrouw'!A32:$C$124,3))) ->  | N61: 0 | Q61: 0 | AA61: =IF(A61>=$H$13," ",J61*X61) ->  | AD61: 0 | AE61: 0 | AI61: 0
A62: 1929-01-01 | B62: =IF(A62>=$H$13," ",A62) ->  | C62: 1929 | E62: 29 | F62: 29 | K62: =IF(A62>=$H$13," ",IF($E$10="M",VLOOKUP(F62,'Sterftetabel Man'!$A$4:$C$124,3),VLOOKUP(F62,'Sterftetabel Vrouw'!A33:$C$124,3))) ->  | N62: 0 | Q62: 0 | AD62: 0 | AE62: 0 | AI62: =IF(B62<$E$16,0,AD62) -> 0 | BG62: =IF(A62>=$H$13," ",BG61+1) -> 
A63: 1930-01-01 | C63: 1930 | E63: 30 | F63: 30 | K63: =IF(A63>=$H$13," ",IF($E$10="M",VLOOKUP(F63,'Sterftetabel Man'!$A$4:$C$124,3),VLOOKUP(F63,'Sterftetabel Vrouw'!A34:$C$124,3))) ->  | N63: 0 | Q63: 0 | AD63: 0 | AE63: 0 | AI63: =IF(B63<$E$16,0,AD63) -> 0
A64: 1931-01-01 | C64: 1931 | E64: 31 | F64: 31 | K64: =IF(A64>=$H$13," ",IF($E$10="M",VLOOKUP(F64,'Sterftetabel Man'!$A$4:$C$124,3),VLOOKUP(F64,'Sterftetabel Vrouw'!A35:$C$124,3))) ->  | N64: 0 | Q64: 0 | AD64: 0 | AE64: 0 | AI64: =IF(B64<$E$16,0,AD64) -> 0
A65: 1932-01-01 | C65: 1932 | E65: 32 | F65: 32 | K65: =IF(A65>=$H$13," ",IF($E$10="M",VLOOKUP(F65,'Sterftetabel Man'!$A$4:$C$124,3),VLOOKUP(F65,'Sterftetabel Vrouw'!A36:$C$124,3))) ->  | N65: 0 | Q65: 0 | T65: =IF(A65>=$H$13," ",M65*O65/R65) ->  | AD65: 0 | AE65: 0 | AI65: 0
A66: 1933-01-01 | C66: 1933 | E66: 33 | F66: 33 | K66: =IF(A66>=$H$13," ",IF($E$10="M",VLOOKUP(F66,'Sterftetabel Man'!$A$4:$C$124,3),VLOOKUP(F66,'Sterftetabel Vrouw'!A37:$C$124,3))) ->  | N66: 0 | Q66: 0 | AD66: 0 | AE66: 0 | AI66: 0
A67: 1934-01-01 | C67: 1934 | E67: 34 | F67: 34 | K67: =IF(A67>=$H$13," ",IF($E$10="M",VLOOKUP(F67,'Sterftetabel Man'!$A$4:$C$124,3),VLOOKUP(F67,'Sterftetabel Vrouw'!A38:$C$124,3))) ->  | N67: 0 | Q67: 0 | AD67: 0 | AE67: 0 | AI67: 0
A68: 1935-01-01 | C68: 1935 | E68: 35 | F68: 35 | K68: =IF(A68>=$H$13," ",IF($E$10="M",VLOOKUP(F68,'Sterftetabel Man'!$A$4:$C$124,3),VLOOKUP(F68,'Sterftetabel Vrouw'!A39:$C$124,3))) ->  | N68: 0 | Q68: =IF(B68<$E$16,0,$E$20) -> 0 | AD68: 0 | AE68: 0 | AI68: 0
A69: 1936-01-01 | C69: 1936 | E69: 36 | F69: 36 | K69: =IF(A69>=$H$13," ",IF($E$10="M",VLOOKUP(F69,'Sterftetabel Man'!$A$4:$C$124,3),VLOOKUP(F69,'Sterftetabel Vrouw'!A40:$C$124,3))) ->  | N69: =IF(B69<$E$16,0,$E$22) -> 0 | Q69: 0 | AD69: 0 | AE69: 0 | AI69: 0
A70: 1937-01-01 | C70: 1937 | E70: 37 | F70: 37 | K70: =IF(A70>=$H$13," ",IF($E$10="M",VLOOKUP(F70,'Sterftetabel Man'!$A$4:$C$124,3),VLOOKUP(F70,'Sterftetabel Vrouw'!A41:$C$124,3))) ->  | N70: 0 | Q70: =IF(B70<$E$16,0,$E$20) -> 0 | AD70: 0 | AE70: 0 | AI70: 0
A71: 1938-01-01 | B71: =IF(A71>=$H$13," ",A71) ->  | C71: 1938 | E71: 38 | F71: 38 | K71: =IF(A71>=$H$13," ",IF($E$10="M",VLOOKUP(F71,'Sterftetabel Man'!$A$4:$C$124,3),VLOOKUP(F71,'Sterftetabel Vrouw'!A42:$C$124,3))) ->  | N71: 0 | Q71: 0 | AD71: 0 | AE71: 0 | AI71: 0
A72: 1939-01-01 | B72: =IF(A72>=$H$13," ",A72) ->  | C72: 1939 | E72: 39 | F72: 39 | K72: =IF(A72>=$H$13," ",IF($E$10="M",VLOOKUP(F72,'Sterftetabel Man'!$A$4:$C$124,3),VLOOKUP(F72,'Sterftetabel Vrouw'!A43:$C$124,3))) ->  | N72: 0 | Q72: 0 | AD72: 0 | AE72: 0 | AI72: 0
A73: 1940-01-01 | B73: =IF(A73>=$H$13," ",A73) ->  | C73: 1940 | E73: 40 | F73: 40 | K73: =IF(A73>=$H$13," ",IF($E$10="M",VLOOKUP(F73,'Sterftetabel Man'!$A$4:$C$124,3),VLOOKUP(F73,'Sterftetabel Vrouw'!A44:$C$124,3))) ->  | N73: 0 | Q73: 0 | AD73: 0 | AE73: 0 | AI73: 0
A74: 1941-01-01 | C74: 1941 | E74: 41 | F74: 41 | K74: =IF(A74>=$H$13," ",IF($E$10="M",VLOOKUP(F74,'Sterftetabel Man'!$A$4:$C$124,3),VLOOKUP(F74,'Sterftetabel Vrouw'!A45:$C$124,3))) ->  | N74: 0 | Q74: 0 | AD74: 0 | AE74: 0 | AI74: 0
A75: 1942-01-01 | C75: 1942 | E75: 42 | F75: 42 | K75: =IF(A75>=$H$13," ",IF($E$10="M",VLOOKUP(F75,'Sterftetabel Man'!$A$4:$C$124,3),VLOOKUP(F75,'Sterftetabel Vrouw'!A46:$C$124,3))) ->  | N75: 0 | Q75: 0 | AD75: 0 | AE75: 0 | AI75: 0 | BD75: =IF(A75>=$H$13," ",+AR75+AT75+AV75+AX75+AZ75) -> 
A76: 1943-01-01 | C76: 1943 | E76: 43 | F76: 43 | K76: =IF(A76>=$H$13," ",IF($E$10="M",VLOOKUP(F76,'Sterftetabel Man'!$A$4:$C$124,3),VLOOKUP(F76,'Sterftetabel Vrouw'!A47:$C$124,3))) ->  | N76: 0 | Q76: 0 | AD76: 0 | AE76: 0 | AI76: =IF(B76<$E$16,0,AD76) -> 0
A77: 1944-01-01 | C77: 1944 | E77: 44 | F77: 44 | K77: =IF(A77>=$H$13," ",IF($E$10="M",VLOOKUP(F77,'Sterftetabel Man'!$A$4:$C$124,3),VLOOKUP(F77,'Sterftetabel Vrouw'!A48:$C$124,3))) ->  | N77: 0 | Q77: 0 | AA77: =IF(A77>=$H$13," ",J77*X77) ->  | AD77: 0 | AE77: 0 | AI77: =IF(B77<$E$16,0,AD77) -> 0
A78: 1945-01-01 | C78: 1945 | E78: 45 | F78: 45 | K78: =IF(A78>=$H$13," ",IF($E$10="M",VLOOKUP(F78,'Sterftetabel Man'!$A$4:$C$124,3),VLOOKUP(F78,'Sterftetabel Vrouw'!A49:$C$124,3))) ->  | N78: 0 | Q78: 0 | AD78: 0 | AE78: 0 | AI78: =IF(B78<$E$16,0,AD78) -> 0
A79: 1946-01-01 | C79: 1946 | E79: 46 | F79: 46 | K79: =IF(A79>=$H$13," ",IF($E$10="M",VLOOKUP(F79,'Sterftetabel Man'!$A$4:$C$124,3),VLOOKUP(F79,'Sterftetabel Vrouw'!A50:$C$124,3))) ->  | N79: 0 | Q79: 0 | AD79: 0 | AE79: 0 | AI79: 0 | AQ79: =IF(A79>=$H$13," ",+AN79+AO79+AP79) -> 
A80: 1947-01-01 | C80: 1947 | E80: 47 | F80: 47 | K80: =IF(A80>=$H$13," ",IF($E$10="M",VLOOKUP(F80,'Sterftetabel Man'!$A$4:$C$124,3),VLOOKUP(F80,'Sterftetabel Vrouw'!A51:$C$124,3))) ->  | N80: 0 | Q80: 0 | AD80: 0 | AE80: 0 | AI80: 0
A81: 1948-01-01 | B81: =IF(A81>=$H$13," ",A81) ->  | C81: 1948 | E81: 48 | F81: 48 | K81: =IF(A81>=$H$13," ",IF($E$10="M",VLOOKUP(F81,'Sterftetabel Man'!$A$4:$C$124,3),VLOOKUP(F81,'Sterftetabel Vrouw'!A52:$C$124,3))) ->  | N81: 0 | Q81: 0 | AD81: 0 | AE81: 0 | AI81: 0
A82: 1949-01-01 | C82: 1949 | E82: 49 | F82: 49 | K82: =IF(A82>=$H$13," ",IF($E$10="M",VLOOKUP(F82,'Sterftetabel Man'!$A$4:$C$124,3),VLOOKUP(F82,'Sterftetabel Vrouw'!A53:$C$124,3))) ->  | N82: =IF(B82<$E$16,0,$E$22) -> 0 | Q82: =IF(B82<$E$16,0,$E$20) -> 0 | AD82: 0 | AE82: 0 | AI82: 0
A83: 1950-01-01 | C83: 1950 | E83: 50 | F83: 50 | K83: =IF(A83>=$H$13," ",IF($E$10="M",VLOOKUP(F83,'Sterftetabel Man'!$A$4:$C$124,3),VLOOKUP(F83,'Sterftetabel Vrouw'!A54:$C$124,3))) ->  | N83: 0 | Q83: 0 | AD83: 0 | AE83: 0 | AI83: 0
A84: 1951-01-01 | C84: 1951 | E84: 51 | F84: 51 | K84: =IF(A84>=$H$13," ",IF($E$10="M",VLOOKUP(F84,'Sterftetabel Man'!$A$4:$C$124,3),VLOOKUP(F84,'Sterftetabel Vrouw'!A55:$C$124,3))) ->  | N84: 0 | Q84: 0 | AD84: 0 | AE84: 0 | AI84: 0
A85: 1952-01-01 | C85: 1952 | E85: 52 | F85: 52 | K85: =IF(A85>=$H$13," ",IF($E$10="M",VLOOKUP(F85,'Sterftetabel Man'!$A$4:$C$124,3),VLOOKUP(F85,'Sterftetabel Vrouw'!A56:$C$124,3))) ->  | N85: 0 | Q85: 0 | AD85: 0 | AE85: 0 | AI85: 0
A86: 1953-01-01 | C86: 1953 | E86: 53 | F86: 53 | K86: =IF(A86>=$H$13," ",IF($E$10="M",VLOOKUP(F86,'Sterftetabel Man'!$A$4:$C$124,3),VLOOKUP(F86,'Sterftetabel Vrouw'!A57:$C$124,3))) ->  | N86: 0 | Q86: 0 | AD86: 0 | AE86: 0 | AI86: 0
A87: 1954-01-01 | B87: =IF(A87>=$H$13," ",A87) ->  | C87: 1954 | E87: 54 | F87: 54 | K87: =IF(A87>=$H$13," ",IF($E$10="M",VLOOKUP(F87,'Sterftetabel Man'!$A$4:$C$124,3),VLOOKUP(F87,'Sterftetabel Vrouw'!A58:$C$124,3))) ->  | N87: 0 | Q87: 0 | Y87: =IF(A87>=$H$13," ",P87/S87) ->  | AD87: 0 | AE87: 0 | AI87: 0
A88: 1955-01-01 | B88: =IF(A88>=$H$13," ",A88) ->  | C88: 1955 | E88: 55 | F88: 55 | K88: =IF(A88>=$H$13," ",IF($E$10="M",VLOOKUP(F88,'Sterftetabel Man'!$A$4:$C$124,3),VLOOKUP(F88,'Sterftetabel Vrouw'!A59:$C$124,3))) ->  | N88: 0 | Q88: 0 | Y88: =IF(A88>=$H$13," ",P88/S88) ->  | AD88: 0 | AE88: 0 | AI88: 0
A89: 1956-01-01 | C89: 1956 | E89: 56 | F89: 56 | K89: =IF(A89>=$H$13," ",IF($E$10="M",VLOOKUP(F89,'Sterftetabel Man'!$A$4:$C$124,3),VLOOKUP(F89,'Sterftetabel Vrouw'!A60:$C$124,3))) ->  | N89: 0 | Q89: 0 | T89: =IF(A89>=$H$13," ",M89*O89/R89) ->  | Y89: =IF(A89>=$H$13," ",P89/S89) ->  | AD89: 0 | AE89: 0 | AI89: 0
A90: 1957-01-01 | C90: 1957 | E90: 57 | F90: 57 | K90: =IF(A90>=$H$13," ",IF($E$10="M",VLOOKUP(F90,'Sterftetabel Man'!$A$4:$C$124,3),VLOOKUP(F90,'Sterftetabel Vrouw'!A61:$C$124,3))) ->  | N90: 0 | Q90: 0 | Y90: =IF(A90>=$H$13," ",P90/S90) ->  | AA90: =IF(A90>=$H$13," ",J90*X90) ->  | AD90: 0 | AE90: 0 | AI90: 0
A91: 1958-01-01 | C91: 1958 | E91: 58 | F91: 58 | K91: =IF(A91>=$H$13," ",IF($E$10="M",VLOOKUP(F91,'Sterftetabel Man'!$A$4:$C$124,3),VLOOKUP(F91,'Sterftetabel Vrouw'!A62:$C$124,3))) ->  | N91: 0 | Q91: 0 | AD91: 0 | AE91: 0 | AI91: 0
A92: 1959-01-01 | C92: 1959 | E92: 59 | F92: 59 | K92: =IF(A92>=$H$13," ",IF($E$10="M",VLOOKUP(F92,'Sterftetabel Man'!$A$4:$C$124,3),VLOOKUP(F92,'Sterftetabel Vrouw'!A63:$C$124,3))) ->  | N92: =IF(B92<$E$16,0,$E$22) -> 0 | Q92: 0 | AD92: 0 | AE92: 0 | AI92: 0
A93: 1960-01-01 | C93: 1960 | E93: 60 | F93: 60 | K93: =IF(A93>=$H$13," ",IF($E$10="M",VLOOKUP(F93,'Sterftetabel Man'!$A$4:$C$124,3),VLOOKUP(F93,'Sterftetabel Vrouw'!A64:$C$124,3))) ->  | N93: 0 | Q93: =IF(B93<$E$16,0,$E$20) -> 0 | AD93: 0 | AE93: 0 | AI93: =IF(B93<$E$16,0,AD93) -> 0
A94: 1961-01-01 | C94: 1961 | E94: 61 | F94: 61 | K94: =IF(A94>=$H$13," ",IF($E$10="M",VLOOKUP(F94,'Sterftetabel Man'!$A$4:$C$124,3),VLOOKUP(F94,'Sterftetabel Vrouw'!A65:$C$124,3))) ->  | N94: 0 | Q94: =IF(B94<$E$16,0,$E$20) -> 0 | AD94: 0 | AE94: 0 | AI94: =IF(B94<$E$16,0,AD94) -> 0
A95: 1962-01-01 | C95: 1962 | E95: 62 | F95: 62 | K95: =IF(A95>=$H$13," ",IF($E$10="M",VLOOKUP(F95,'Sterftetabel Man'!$A$4:$C$124,3),VLOOKUP(F95,'Sterftetabel Vrouw'!A66:$C$124,3))) ->  | N95: 0 | Q95: =IF(B95<$E$16,0,$E$20) -> 0 | AD95: 0 | AE95: 0 | AI95: =IF(B95<$E$16,0,AD95) -> 0
A96: 1963-01-01 | B96: =IF(A96>=$H$13," ",A96) ->  | C96: 1963 | E96: 63 | F96: 63 | K96: =IF(A96>=$H$13," ",IF($E$10="M",VLOOKUP(F96,'Sterftetabel Man'!$A$4:$C$124,3),VLOOKUP(F96,'Sterftetabel Vrouw'!A67:$C$124,3))) ->  | N96: 0 | Q96: 0 | AD96: 0 | AE96: 0 | AI96: =IF(B96<$E$16,0,AD96) -> 0
A97: 1964-01-01 | C97: 1964 | E97: 64 | F97: 64 | K97: =IF(A97>=$H$13," ",IF($E$10="M",VLOOKUP(F97,'Sterftetabel Man'!$A$4:$C$124,3),VLOOKUP(F97,'Sterftetabel Vrouw'!A68:$C$124,3))) ->  | L97: =IF(A97>=$H$13," ",IF($E$10="m",$E$19,$E$18)) ->  | M97: =IF(A97>=$H$13," ",IF(B97>$E$16,K97/L97,1)) ->  | N97: 0 | O97: =IF(A97>=$H$13," ",(1+N97)^(YEAR(B97)+1-YEAR($E$16))) ->  | Q97: 0 | R97: =IF(A97>=$H$13," ",(1+Q97)^(YEAR(B97)+1-YEAR($E$16))) ->  | V97: =IF(A97>=$H$13," ",IF(B97<$E$16,W97," ")) ->  | AD97: 0 | AE97: 0 | AF97: =IF(A97>=$H$13," ",IF(B97<$E$16,0,AD97*Q97)) ->  | AI97: =IF(B97<$E$16,0,AD97) -> 0 | AJ97: =IF(A97>=$H$13," ",IF(AI97<$E$26,AI97,$E$26)) ->  | AK97: =IF(A97>=$H$13," ",IF(AI97<1,0,IF($E$25=0,0,IF($E$25=1,$E$24,2*$E$24)))) ->  | AM97: =IF(A97>=$H$13," ",IF(AI97<$H$26,IF(AI97<$E$26,$E$27,$G$27),$H$27)) ->  | AN97: =IF(A97>=$H$13," ",IF(B97<$H$13,IF(AI97-AK97<AJ97,IF(AI97-AK97<0,0,(AI97-AK97)*$E$27*0.3),AJ97*$E$27*0.3),0)) ->  | AO97: =IF(A97>=$H$13," ",IF(B97<$H$13,IF(AL97<AJ97,0,IF(AL97>$G$26,($G$26-AJ97)*$G$27*0.3,(AL97-AJ97)*$G$27*0.3)),0)) ->  | AP97: =IF(A97>=$H$13," ",IF(AL97>$G$26,(AL97-$G$26)*$H$27*0.3,0)) ->  | AT97: =IF(A97>=$H$13," ",IF(B97<$E$16,0,+AS97*AM97*0.3)) ->  | AV97: =IF(A97>=$H$13," ",IF(B97<$E$16,0,AU97*AM97*0.3)) ->  | AX97: =IF(A97>=$H$13," ",IF(B97<$E$16,0,+AW97*AM97*0.3)) ->  | AZ97: =IF(A97>=$H$13," ",IF(B97<$E$16,0,+AY97*AM97*0.3)) ->  | BD97: =IF(A97>=$H$13," ",+AR97+AT97+AV97+AX97+AZ97) ->  | BJ97: =+AF97 -> 
A98: 1965-01-01 | C98: 1965 | E98: =YEAR(A98)-YEAR($E$11) -> 65 | F98: =IF(AND($E$11>$J$10,$E$11<=$J$11),(DATEDIF($E$11,A98,"y"))+1,DATEDIF($E$11,A98,"y")) -> 65 | G98: =IF(A98>=$H$13," ",IF(B98>=$G$13,IF(B98<$H$13,$E$13,0),0)) ->  | J98: =IF(A98>=$H$13," ",SUM(G98:I98)) ->  | K98: =IF(A98>=$H$13," ",IF($E$10="M",VLOOKUP(F98,'Sterftetabel Man'!$A$4:$C$124,3),VLOOKUP(F98,'Sterftetabel Vrouw'!A69:$C$124,3))) ->  | N98: =IF(B98<$E$16,0,$E$22) -> 0 | Q98: 0 | T98: =IF(A98>=$H$13," ",M98*O98/R98) ->  | U98: =IF(A98>=$H$13," ",T98) ->  | W98: =IF(A98>=$H$13," ",J98*T98) ->  | X98: =IF(A98>=$H$13," ",M98*P98/S98) ->  | Z98: =IF(A98>=$H$13," ",J98*P98*M98) ->  | AA98: =IF(A98>=$H$13," ",J98*X98) ->  | AD98: 0 | AE98: =IF(Z98=" ",0,Z98) -> 0 | AG98: =IF(A98>=$H$13," ",AD98-AE98+AF98) ->  | AI98: =IF(B98<$E$16,0,AD98) -> 0 | AL98: =IF(A98>=$H$13," ",AI98-AK98) ->  | AQ98: =IF(A98>=$H$13," ",+AN98+AO98+AP98) ->  | AR98: =IF(A98>=$H$13," ",AQ98/S98) ->  | BA98: =IF(A98>=$H$13," ",+AZ188) ->  | BE98: =IF(A98>=$H$13," ",BC98-BD98) ->  | BH98: =IF(A98>=$H$13," ",+BC98+AD98) ->  | BI98: =IF(A98>=$H$13," ",+BD98+AE98) ->  | BK98: =IF(A98>=$H$13," ",+AG98+BE98) -> 
A99: =DATE(C99,1,1) -> 1966-01-01 | C99: =C98+1 -> 1966 | D99: =IF(A99>=$H$13," ",D98+1) ->  | E99: 66 | F99: 66 | K99: =IF(A99>=$H$13," ",IF($E$10="M",VLOOKUP(F99,'Sterftetabel Man'!$A$4:$C$124,3),VLOOKUP(F99,'Sterftetabel Vrouw'!A70:$C$124,3))) ->  | N99: 0 | Q99: 0 | S99: =S98*(1+Q99) ->  | AB99: =IF(A99>=$H$13," ",J99*Y99) ->  | AD99: 0 | AE99: 0 | AI99: 0 | AS99: =IF(A99>=$H$13," ",+AS98-AR98) ->  | AW99: =IF(A99>=$H$13," ",+AW98-AV98) ->  | AY99: =IF(A99>=$H$13," ",+AY98-AX98) ->  | BC99: =IF(A99>=$H$13," ",+BE98) ->  | BD99: =IF(A99>=$H$13," ",+AR99+AT99+AV99+AX99+AZ99) ->  | BG99: =IF(A99>=$H$13," ",BG98+1) -> 
A100: 1967-01-01 | C100: 1967 | E100: 67 | F100: 67 | K100: =IF(A100>=$H$13," ",IF($E$10="M",VLOOKUP(F100,'Sterftetabel Man'!$A$4:$C$124,3),VLOOKUP(F100,'Sterftetabel Vrouw'!A71:$C$124,3))) ->  | N100: 0 | Q100: 0 | AD100: 0 | AE100: 0 | AI100: 0
A101: 1968-01-01 | C101: 1968 | E101: 68 | F101: 68 | K101: =IF(A101>=$H$13," ",IF($E$10="M",VLOOKUP(F101,'Sterftetabel Man'!$A$4:$C$124,3),VLOOKUP(F101,'Sterftetabel Vrouw'!A72:$C$124,3))) ->  | N101: 0 | Q101: 0 | AD101: 0 | AE101: 0 | AI101: 0
A102: 1969-01-01 | C102: 1969 | E102: 69 | F102: 69 | K102: =IF(A102>=$H$13," ",IF($E$10="M",VLOOKUP(F102,'Sterftetabel Man'!$A$4:$C$124,3),VLOOKUP(F102,'Sterftetabel Vrouw'!A73:$C$124,3))) ->  | N102: =IF(B102<$E$16,0,$E$22) -> 0 | Q102: 0 | AD102: 0 | AE102: 0 | AI102: 0
A103: 1970-01-01 | C103: 1970 | E103: 70 | F103: 70 | K103: =IF(A103>=$H$13," ",IF($E$10="M",VLOOKUP(F103,'Sterftetabel Man'!$A$4:$C$124,3),VLOOKUP(F103,'Sterftetabel Vrouw'!A74:$C$124,3))) ->  | N103: =IF(B103<$E$16,0,$E$22) -> 0 | Q103: 0 | AD103: 0 | AE103: 0 | AI103: 0
A104: 1971-01-01 | C104: 1971 | E104: 71 | F104: 71 | K104: =IF(A104>=$H$13," ",IF($E$10="M",VLOOKUP(F104,'Sterftetabel Man'!$A$4:$C$124,3),VLOOKUP(F104,'Sterftetabel Vrouw'!A75:$C$124,3))) ->  | N104: 0 | Q104: 0 | AD104: 0 | AE104: 0 | AI104: 0
A105: 1972-01-01 | B105: =IF(A105>=$H$13," ",A105) ->  | C105: 1972 | E105: 72 | F105: 72 | K105: =IF(A105>=$H$13," ",IF($E$10="M",VLOOKUP(F105,'Sterftetabel Man'!$A$4:$C$124,3),VLOOKUP(F105,'Sterftetabel Vrouw'!A76:$C$124,3))) ->  | N105: 0 | Q105: 0 | AD105: 0 | AE105: 0 | AI105: =IF(B105<$E$16,0,AD105) -> 0
A106: 1973-01-01 | C106: 1973 | E106: 73 | F106: 73 | K106: =IF(A106>=$H$13," ",IF($E$10="M",VLOOKUP(F106,'Sterftetabel Man'!$A$4:$C$124,3),VLOOKUP(F106,'Sterftetabel Vrouw'!A77:$C$124,3))) ->  | N106: 0 | Q106: =IF(B106<$E$16,0,$E$20) -> 0 | AD106: 0 | AE106: 0 | AI106: =IF(B106<$E$16,0,AD106) -> 0
A107: 1974-01-01 | C107: 1974 | E107: 74 | F107: 74 | K107: =IF(A107>=$H$13," ",IF($E$10="M",VLOOKUP(F107,'Sterftetabel Man'!$A$4:$C$124,3),VLOOKUP(F107,'Sterftetabel Vrouw'!A78:$C$124,3))) ->  | N107: 0 | Q107: 0 | AD107: =IF(A107>=$H$13,0,AG106) -> 0 | AE107: 0 | AI107: =IF(B107<$E$16,0,AD107) -> 0
A108: 1975-01-01 | B108: =IF(A108>=$H$13," ",A108) ->  | C108: 1975 | E108: 75 | F108: 75 | K108: =IF(A108>=$H$13," ",IF($E$10="M",VLOOKUP(F108,'Sterftetabel Man'!$A$4:$C$124,3),VLOOKUP(F108,'Sterftetabel Vrouw'!A79:$C$124,3))) ->  | N108: 0 | Q108: 0 | T108: =IF(A108>=$H$13," ",M108*O108/R108) ->  | AA108: =IF(A108>=$H$13," ",J108*X108) ->  | AD108: 0 | AE108: 0 | AI108: 0
A109: 1976-01-01 | B109: =IF(A109>=$H$13," ",A109) ->  | C109: 1976 | E109: 76 | F109: 76 | K109: =IF(A109>=$H$13," ",IF($E$10="M",VLOOKUP(F109,'Sterftetabel Man'!$A$4:$C$124,3),VLOOKUP(F109,'Sterftetabel Vrouw'!A80:$C$124,3))) ->  | N109: 0 | Q109: 0 | T109: =IF(A109>=$H$13," ",M109*O109/R109) ->  | AA109: =IF(A109>=$H$13," ",J109*X109) ->  | AD109: 0 | AE109: 0 | AI109: 0 | BD109: =IF(A109>=$H$13," ",+AR109+AT109+AV109+AX109+AZ109) -> 
A110: 1977-01-01 | C110: 1977 | E110: 77 | F110: 77 | K110: =IF(A110>=$H$13," ",IF($E$10="M",VLOOKUP(F110,'Sterftetabel Man'!$A$4:$C$124,3),VLOOKUP(F110,'Sterftetabel Vrouw'!A81:$C$124,3))) ->  | N110: 0 | Q110: =IF(B110<$E$16,0,$E$20) -> 0 | AD110: 0 | AE110: 0 | AI110: 0 | BD110: =IF(A110>=$H$13," ",+AR110+AT110+AV110+AX110+AZ110) -> 
A111: 1978-01-01 | C111: 1978 | E111: 78 | F111: 78 | K111: =IF(A111>=$H$13," ",IF($E$10="M",VLOOKUP(F111,'Sterftetabel Man'!$A$4:$C$124,3),VLOOKUP(F111,'Sterftetabel Vrouw'!A82:$C$124,3))) ->  | N111: 0 | Q111: =IF(B111<$E$16,0,$E$20) -> 0 | AD111: 0 | AE111: 0 | AI111: 0
A112: 1979-01-01 | C112: 1979 | E112: 79 | F112: 79 | K112: =IF(A112>=$H$13," ",IF($E$10="M",VLOOKUP(F112,'Sterftetabel Man'!$A$4:$C$124,3),VLOOKUP(F112,'Sterftetabel Vrouw'!A83:$C$124,3))) ->  | N112: 0 | Q112: 0 | AD112: 0 | AE112: 0 | AI112: 0
A113: 1980-01-01 | C113: 1980 | E113: 80 | F113: 80 | K113: =IF(A113>=$H$13," ",IF($E$10="M",VLOOKUP(F113,'Sterftetabel Man'!$A$4:$C$124,3),VLOOKUP(F113,'Sterftetabel Vrouw'!A84:$C$124,3))) ->  | N113: 0 | Q113: 0 | AD113: 0 | AE113: 0 | AI113: 0
A114: 1981-01-01 | C114: 1981 | E114: 81 | F114: 81 | K114: =IF(A114>=$H$13," ",IF($E$10="M",VLOOKUP(F114,'Sterftetabel Man'!$A$4:$C$124,3),VLOOKUP(F114,'Sterftetabel Vrouw'!A85:$C$124,3))) ->  | N114: 0 | Q114: 0 | W114: =IF(A114>=$H$13," ",J114*T114) ->  | AD114: 0 | AE114: 0 | AI114: 0
A115: 1982-01-01 | C115: 1982 | E115: 82 | F115: 82 | K115: =IF(A115>=$H$13," ",IF($E$10="M",VLOOKUP(F115,'Sterftetabel Man'!$A$4:$C$124,3),VLOOKUP(F115,'Sterftetabel Vrouw'!A86:$C$124,3))) ->  | N115: 0 | Q115: 0 | W115: =IF(A115>=$H$13," ",J115*T115) ->  | AD115: 0 | AE115: 0 | AI115: 0
A116: 1983-01-01 | C116: 1983 | E116: 83 | F116: 83 | K116: =IF(A116>=$H$13," ",IF($E$10="M",VLOOKUP(F116,'Sterftetabel Man'!$A$4:$C$124,3),VLOOKUP(F116,'Sterftetabel Vrouw'!A87:$C$124,3))) ->  | N116: 0 | Q116: 0 | AD116: 0 | AE116: 0 | AI116: 0
A117: 1984-01-01 | B117: =IF(A117>=$H$13," ",A117) ->  | C117: 1984 | E117: 84 | F117: 84 | K117: =IF(A117>=$H$13," ",IF($E$10="M",VLOOKUP(F117,'Sterftetabel Man'!$A$4:$C$124,3),VLOOKUP(F117,'Sterftetabel Vrouw'!A88:$C$124,3))) ->  | N117: 0 | Q117: 0 | AD117: 0 | AE117: 0 | AI117: 0
A118: 1985-01-01 | C118: 1985 | E118: 85 | F118: 85 | K118: =IF(A118>=$H$13," ",IF($E$10="M",VLOOKUP(F118,'Sterftetabel Man'!$A$4:$C$124,3),VLOOKUP(F118,'Sterftetabel Vrouw'!A89:$C$124,3))) ->  | N118: =IF(B118<$E$16,0,$E$22) -> 0 | P118: =P117*(1+N118) ->  | Q118: 0 | AD118: 0 | AE118: 0 | AI118: 0
A119: 1986-01-01 | C119: 1986 | E119: 86 | F119: 86 | K119: =IF(A119>=$H$13," ",IF($E$10="M",VLOOKUP(F119,'Sterftetabel Man'!$A$4:$C$124,3),VLOOKUP(F119,'Sterftetabel Vrouw'!A90:$C$124,3))) ->  | N119: =IF(B119<$E$16,0,$E$22) -> 0 | Q119: 0 | AD119: 0 | AE119: 0 | AI119: 0
A120: 1987-01-01 | C120: 1987 | E120: 87 | F120: 87 | K120: =IF(A120>=$H$13," ",IF($E$10="M",VLOOKUP(F120,'Sterftetabel Man'!$A$4:$C$124,3),VLOOKUP(F120,'Sterftetabel Vrouw'!A91:$C$124,3))) ->  | N120: 0 | Q120: 0 | Z120: =IF(A120>=$H$13," ",J120*P120*M120) ->  | AD120: 0 | AE120: 0 | AI120: 0
A121: 1988-01-01 | C121: 1988 | E121: 88 | F121: 88 | K121: =IF(A121>=$H$13," ",IF($E$10="M",VLOOKUP(F121,'Sterftetabel Man'!$A$4:$C$124,3),VLOOKUP(F121,'Sterftetabel Vrouw'!A92:$C$124,3))) ->  | N121: 0 | Q121: 0 | Z121: =IF(A121>=$H$13," ",J121*P121*M121) ->  | AA121: =IF(A121>=$H$13," ",J121*X121) ->  | AD121: 0 | AE121: 0 | AI121: 0
A122: 1989-01-01 | C122: 1989 | E122: 89 | F122: 89 | K122: =IF(A122>=$H$13," ",IF($E$10="M",VLOOKUP(F122,'Sterftetabel Man'!$A$4:$C$124,3),VLOOKUP(F122,'Sterftetabel Vrouw'!A93:$C$124,3))) ->  | N122: 0 | Q122: =IF(B122<$E$16,0,$E$20) -> 0 | AA122: =IF(A122>=$H$13," ",J122*X122) ->  | AD122: 0 | AE122: 0 | AI122: =IF(B122<$E$16,0,AD122) -> 0 | AU122: =IF(A121>=$H$13," ",+AU121-AT121) -> 
B123: TOTALEN | V123: =SUM(V33:V122) -> 0 | W123: =SUM(W33:W122) -> 0 | AA123: =SUM(AA33:AA122) -> 0 | AB123: =SUM(AB33:AB122) -> 0 | AR123: =SUM(AR33:AR122) -> 0 | AT123: =SUM(AT33:AT122) -> 0 | AV123: =SUM(AV33:AV122) -> 0 | AX123: =SUM(AX33:AX108) -> 0 | AZ123: =SUM(AZ33:AZ122) -> 0 | BD123: =SUM(BD33:BD122) -> 0

Sheet Sterftetabel Man (hidden)
A1: Sterftequotienten Gehele Bevolking 2012-2017
A2: leeftijd | B2: MAN | C2: afgerond
A3: lft | B3: qx | C3: lx
A4: 0 | B4: 0.0038287 | C4: 10000000
A5: 1 | B5: 0.0002431 | C5: =+C4*(1-B4) -> 9961713 | F5: =+C4-C5 -> 38287
A6: 2 | B6: 0.0001557 | C6: 9959291.308 | F6: 2421.69243
A7: 3 | B7: 0.0001338 | C7: 9957740.646 | F7: 1550.661657
A8: 4 | B8: 0.0001082 | C8: 9956408.3 | F8: 1332.345698
A9: 5 | B9: 9.02e-05 | C9: 9955331.017 | F9: 1077.283378
A10: 6 | B10: 7.89e-05 | C10: 9954433.046 | F10: 897.9708577
A11: 7 | B11: 7.55e-05 | C11: 9953647.641 | F11: 785.4047673
A12: 8 | B12: 7.36e-05 | C12: 9952896.141 | F12: 751.5003969
A13: 9 | B13: 7.36e-05 | C13: 9952163.608 | F13: 732.533156
A14: 10 | B14: 7.94e-05 | C14: 9951431.128 | F14: 732.4792415
A15: 11 | B15: 8.35e-05 | C15: 9950640.985 | F15: 790.1436316
A16: 12 | B16: 9.32e-05 | C16: 9949810.106 | F16: 830.8785222
A17: 13 | B17: 0.0001028 | C17: 9948882.784 | F17: 927.3223019
A18: 14 | B18: 0.0001291 | C18: 9947860.039 | F18: 1022.74515
A19: 15 | B19: 0.0001601 | C19: 9946575.77 | F19: 1284.268731
A20: 16 | B20: 0.0001945 | C20: 9944983.323 | F20: 1592.446781
A21: 17 | B21: 0.0002458 | C21: 9943049.024 | F21: 1934.299256
A22: 18 | B22: 0.0002951 | C22: 9940605.023 | F22: 2444.00145
A23: 19 | B23: 0.0003337 | C23: 9937671.55 | F23: 2933.472542
A24: 20 | B24: 0.0003627 | C24: 9934355.349 | F24: 3316.200996
A25: 21 | B25: 0.000376 | C25: 9930752.158 | F25: 3603.190685
A26: 22 | B26: 0.0003904 | C26: 9927018.196 | F26: 3733.962812
A27: 23 | B27: 0.0004022 | C27: 9923142.688 | F27: 3875.507904
A28: 24 | B28: 0.0004159 | C28: 9919151.6 | F28: 3991.087989
A29: 25 | B29: 0.0004336 | C29: 9915026.225 | F29: 4125.37515
A30: 26 | B30: 0.0004422 | C30: 9910727.069 | F30: 4299.155371
A31: 27 | B31: 0.0004557 | C31: 9906344.546 | F31: 4382.52351
A32: 28 | B32: 0.0004646 | C32: 9901830.224 | F32: 4514.321209
A33: 29 | B33: 0.0004765 | C33: 9897229.834 | F33: 4600.390322
A34: 30 | B34: 0.0004837 | C34: 9892513.804 | F34: 4716.030016
A35: 31 | B35: 0.0005171 | C35: 9887728.795 | F35: 4785.008927
A36: 32 | B36: 0.0005453 | C36: 9882615.851 | F36: 5112.94456
A37: 33 | B37: 0.0005778 | C37: 9877226.86 | F37: 5388.990423
A38: 34 | B38: 0.0006105 | C38: 9871519.798 | F38: 5707.06168
A39: 35 | B39: 0.0006412 | C39: 9865493.236 | F39: 6026.562837
A40: 36 | B40: 0.0006786 | C40: 9859167.481 | F40: 6325.754263
A41: 37 | B41: 0.0007239 | C41: 9852477.05 | F41: 6690.431053
A42: 38 | B42: 0.0007729 | C42: 9845344.842 | F42: 7132.208137
A43: 39 | B43: 0.0008463 | C43: 9837735.375 | F43: 7609.467029
A44: 40 | B44: 0.0009187 | C44: 9829409.7 | F44: 8325.675448
A45: 41 | B45: 0.0010298 | C45: 9820379.421 | F45: 9030.278691
A46: 42 | B46: 0.0011151 | C46: 9810266.394 | F46: 10113.02673
A47: 43 | B47: 0.0012333 | C47: 9799326.966 | F47: 10939.42806
A48: 44 | B48: 0.0013699 | C48: 9787241.456 | F48: 12085.50995
A49: 45 | B49: 0.0014908 | C49: 9773833.914 | F49: 13407.54207
A50: 46 | B50: 0.0016527 | C50: 9759263.083 | E50: =+C50 -> 9759263.083 | F50: 14570.8316
A51: 47 | B51: 0.0018367 | C51: 9743133.949 | D51: =+B51*2.5 -> 0.00459175 | E51: =+E50*(1-D51) -> 9714450.986 | F51: 16129.1341
A52: 48 | B52: 0.0020269 | C52: 9725238.734 | D52: =+B52*2.5 -> 0.00506725 | E52: 9665225.435 | F52: 17895.21412 | H52: =+C52/C52 -> 1
A53: 49 | B53: 0.0022758 | C53: 9705526.648 | D53: 0.0056895 | E53: 9610235.135 | F53: 19712.08639 | H53: =+C53/C52 -> 0.9979731
A54: 50 | B54: 0.002549 | C54: 9683438.81 | D54: 0.0063725 | E54: 9548993.911 | F54: 22087.83755 | H54: =+C54/C52 -> 0.9957019128
A55: 51 | B55: 0.0028428 | C55: 9658755.725 | D55: 0.007107 | E55: 9481129.211 | F55: 24683.08553
A56: 52 | B56: 0.0031605 | C56: 9631297.814 | D56: 0.00790125 | E56: 9406216.439 | F56: 27457.91077
A57: 53 | B57: 0.0035328 | C57: 9600858.097 | D57: 0.008832 | E57: 9323140.736 | F57: 30439.71674
A58: 54 | B58: 0.0039472 | C58: 9566940.186 | D58: 0.009868 | E58: 9231139.983 | F58: 33917.91149
A59: 55 | B59: 0.0043674 | C59: 9529177.56 | D59: 0.0109185 | E59: 9130349.781 | F59: 37762.6263
A60: 56 | B60: 0.0048788 | C60: 9487559.83 | D60: 0.012197 | E60: 9018986.905 | F60: 41617.73007
A61: 57 | B61: 0.0053961 | C61: 9441271.923 | D61: 0.01349025 | E61: 8897318.517 | F61: 46287.9069
A62: 58 | B62: 0.005962 | C62: 9390325.875 | D62: 0.014905 | E62: 8764703.984 | F62: 50946.04742
A63: 59 | B63: 0.0066035 | C63: 9334340.752 | D63: 0.01650875 | E63: 8620009.677 | F63: 55985.12287
A64: 60 | B64: 0.0073086 | C64: 9272701.433 | D64: 0.0182715 | E64: 8462509.17 | F64: 61639.31916
A65: 61 | B65: 0.0080678 | C65: 9204930.968 | D65: 0.0201695 | E65: 8291824.592 | F65: 67770.46569
A66: 62 | B66: 0.0088564 | C66: 9130667.425 | D66: 0.022141 | E66: 8108235.303 | F66: 74263.54206
A67: 63 | B67: 0.0097504 | C67: 9049802.582 | D67: 0.024376 | E67: 7910588.96 | F67: 80864.84299
A68: 64 | B68: 0.0106845 | C68: 8961563.387 | D68: 0.02671125 | E68: 7699287.24 | F68: 88239.1951
A69: 65 | B69: 0.0117417 | C69: =+C68*(1-B68) -> 8865813.563 | D69: 0.02935425 | E69: 7473280.438 | F69: =+C68-C69 -> 95749.82401
A70: 66 | B70: 0.0129569 | C70: 8761713.84 | D70: 0.03239225 | E70: 7231204.07 | F70: 104099.7231
A71: 67 | B71: 0.014297 | C71: 8648189.19 | D71: 0.0357425 | E71: 6972742.758 | F71: 113524.6501
A72: 68 | B72: 0.0158288 | C72: 8524546.029 | D72: 0.039572 | E72: 6696817.382 | F72: 123643.1609
A73: 69 | B73: 0.0175059 | C73: 8389612.695 | D73: 0.04376475 | E73: 6403732.843 | F73: 134933.3342
A74: 70 | B74: 0.0193581 | C74: 8242744.974 | D74: 0.04839525 | E74: 6093822.591 | F74: 146867.7209
A75: 71 | B75: 0.0214144 | C75: 8083181.093 | D75: 0.053536 | E75: 5767583.705 | F75: 159563.8815
A76: 72 | B76: 0.0236756 | C76: 7910084.62 | D76: 0.059189 | E76: 5426206.193 | F76: 173096.4732
A77: 73 | B77: 0.0261732 | C77: 7722808.62 | D77: 0.065433 | E77: 5071153.243 | F77: 187275.9994
A78: 74 | B78: 0.028967 | C78: 7520678.006 | D78: 0.0724175 | E78: 4703913.003 | F78: 202130.6146
A79: 75 | B79: 0.0321935 | C79: 7302826.526 | D79: 0.08048375 | E79: 4325324.445 | F79: 217851.4798
A80: 76 | B80: 0.0360442 | C80: 7067722.98 | D80: 0.0901105 | E80: 3935567.297 | F80: 235103.5458
A81: 77 | B81: 0.0405892 | C81: 6812972.559 | D81: 0.101473 | E81: 3536213.476 | F81: 254750.4206
A82: 78 | B82: 0.0458366 | C82: 6536439.454 | D82: 0.1145915 | E82: 3130993.47 | F82: 276533.1058
A83: 79 | B83: 0.0517993 | C83: 6236831.293 | D83: 0.12949825 | E83: 2725535.295 | F83: 299608.1607
A84: 80 | B84: 0.0585787 | C84: 5913767.798 | D84: 0.14644675 | E84: 2326389.509 | F84: 323063.4952
A85: 81 | B85: 0.0664854 | C85: 5567346.968 | D85: 0.1662135 | E85: 1939712.166 | F85: 346420.8297
A86: 82 | B86: 0.0752157 | C86: 5197199.678 | D86: 0.18803925 | E86: 1574970.145 | F86: 370147.2901
A87: 83 | B87: 0.0848058 | C87: 4806288.666 | D87: 0.2120145 | E87: 1241053.637 | F87: 390911.0118
A88: 84 | B88: 0.0953557 | C88: 4398687.511 | D88: 0.23838925 | E88: 945199.7915 | F88: 407601.1554
A89: 85 | B89: 0.1067381 | C89: 3979247.584 | D89: 0.26684525 | E89: 692977.7169 | F89: 419439.9267
A90: 86 | B90: 0.1194423 | C90: 3554510.258 | D90: 0.29860575 | E90: 486050.586 | F90: 424737.3266
A91: 87 | B91: 0.1335201 | C91: 3129951.377 | D91: 0.33380025 | E91: 323806.7789 | F91: 424558.8805
A92: 88 | B92: 0.1486364 | C92: 2712039.956 | D92: 0.371591 | E92: 203483.0941 | F92: 417911.4209
A93: 89 | B93: 0.1654449 | C93: 2308932.1 | D93: 0.41361225 | E93: 119319.9937 | F93: 403107.8557
A94: 90 | B94: 0.1831556 | C94: 1926931.06 | D94: 0.457889 | E94: 64684.68111 | F94: 382001.0405
A95: 91 | B95: 0.2038853 | C95: 1574002.846 | D95: 0.50971325 | E95: 31714.04208 | F95: 352928.2144
A96: 92 | B96: 0.2252226 | C96: 1253086.803 | D96: 0.5630565 | E96: 13857.24454 | F96: 320916.0424
A97: 93 | B97: 0.2456724 | C97: 970863.3353 | D97: 0.614181 | E97: 5346.388233 | F97: 282223.4678
A98: 94 | B98: 0.2682958 | C98: 732349.0097 | D98: =+B98*2.5 -> 0.6707395 | E98: =+E97*(1-D98) -> 1760.354463 | F98: 238514.3257
A99: 95 | B99: 0.28812 | C99: 535862.8462 | D99: =+B99*2.5 -> 0.7203 | E99: =+E98*(1-D99) -> 492.3711432 | F99: 196486.1634
A100: 96 | B100: 0.3104677 | C100: 381470.043 | D100: =+B100*2.5 -> 0.77616925 | E100: =+E99*(1-D100) -> 110.2078023 | F100: 154392.8033
A101: 97 | B101: 0.3328869 | C101: 263035.9161 | D101: =+B101*2.5 -> 0.83221725 | E101: =+E100*(1-D101) -> 18.49096814 | F101: 118434.1269
A102: 98 | B102: 0.3551491 | C102: 175474.7054 | D102: =+B102*2.5 -> 0.88787275 | E102: =+E101*(1-D102) -> 2.073341407 | F102: 87561.2107
A103: 99 | B103: 0.3770317 | C103: 113155.0217 | F103: 62319.6837
A104: 100 | B104: 0.3983268 | C104: 70491.99151 | F104: 42663.0302
A105: 101 | B105: 0.4188488 | C105: 42413.14211 | F105: 28078.8494
A106: 102 | B106: 0.4384406 | C106: 24648.44843 | F106: 17764.69368
A107: 103 | B107: 0.4569775 | C107: 13841.56791 | F107: 10806.88052
A108: 104 | B108: 0.4743685 | C108: 7516.282812 | F108: 6325.285101
A109: 105 | B109: 0.4905558 | C109: 3950.795009 | F109: 3565.487803
A110: 106 | B110: 0.5055128 | C110: 2012.709603 | F110: 1938.085406
A111: 107 | B111: 0.5192404 | C111: 995.2591358 | F111: 1017.450467
A112: 108 | B112: 0.5317626 | C112: 478.480384 | F112: 516.7787518
A113: 109 | B113: 0.543122 | C113: 224.042411 | F113: 254.4379731
A114: 110 | B114: 0.5533753 | C114: 102.3600486 | F114: 121.6823623
A115: 111 | B115: 0.5625891 | C115: 45.71652601 | F115: 56.64352262
A116: 112 | B116: 0.5708358 | C116: 19.99690679 | F116: 25.71961923
A117: 113 | B117: 0.578191 | C117: 8.581956504 | F117: 11.41495028
A118: 114 | B118: 0.5847307 | C118: 3.619946491 | F118: 4.962010013
A119: 115 | B119: 0.5905293 | C119: 1.503252645 | F119: 2.116693846
A120: 116 | B120: 0.5956586 | C120: 0.615537913 | F120: 0.8877147324
A121: 117 | B121: 0.6001861 | C121: 0.2488874615 | F121: 0.3666504515
A122: 118 | B122: 0.6041751 | C122: 0.09950866664 | F122: 0.1493787949
A123: 119 | B123: 0.6076839 | C123: 0.03938800802 | F123: 0.06012065862
A124: 120 | B124: 0.610766 | C124: 0.01545254969 | F124: 0.02393545833

Sheet Sterftetabel Vrouw (hidden)
A1: Sterftequotienten Gehele Bevolking 2012-2017
A2: leeftijd | B2: VROUW | C2: afgerond
A3: lft | B3: qy | C3: ly
A4: 0 | B4: 0.00326 | C4: 10000000
A5: 1 | B5: 0.0002133 | C5: =+C4*(1-B4) -> 9967400
A6: 2 | B6: 9.66e-05 | C6: =+C5*(1-B5) -> 9965273.954
A7: 3 | B7: 8.99e-05 | C7: 9964311.308
A8: 4 | B8: 7.35e-05 | C8: 9963415.517
A9: 5 | B9: 7.13e-05 | C9: 9962683.205
A10: 6 | B10: 6.9e-05 | C10: 9961972.866
A11: 7 | B11: 7.23e-05 | C11: 9961285.49
A12: 8 | B12: 7.31e-05 | C12: 9960565.289
A13: 9 | B13: 7.62e-05 | C13: 9959837.172
A14: 10 | B14: 7.87e-05 | C14: 9959078.232
A15: 11 | B15: 7.84e-05 | C15: 9958294.453
A16: 12 | B16: 8.19e-05 | C16: 9957513.722
A17: 13 | B17: 8.94e-05 | C17: 9956698.202
A18: 14 | B18: 0.0001014 | C18: 9955808.073
A19: 15 | B19: 0.000112 | C19: 9954798.554
A20: 16 | B20: 0.0001342 | C20: 9953683.617
A21: 17 | B21: 0.0001517 | C21: 9952347.833
A22: 18 | B22: 0.0001641 | C22: 9950838.061
A23: 19 | B23: 0.0001733 | C23: 9949205.129
A24: 20 | B24: 0.0001771 | C24: 9947480.932
A25: 21 | B25: 0.0001752 | C25: 9945719.233
A26: 22 | B26: 0.0001798 | C26: 9943976.743
A27: 23 | B27: 0.0001783 | C27: 9942188.816
A28: 24 | B28: 0.0001842 | C28: 9940416.123
A29: 25 | B29: 0.0001955 | C29: 9938585.099
A30: 26 | B30: 0.0002135 | C30: 9936642.105
A31: 27 | B31: 0.0002318 | C31: 9934520.632
A32: 28 | B32: 0.0002443 | C32: 9932217.81
A33: 29 | B33: 0.0002686 | C33: 9929791.37
A34: 30 | B34: 0.000293 | C34: 9927124.228
A35: 31 | B35: 0.0003169 | C35: 9924215.58
A36: 32 | B36: 0.0003452 | C36: 9921070.596
A37: 33 | B37: 0.0003605 | C37: 9917645.843
A38: 34 | B38: 0.0003877 | C38: 9914070.531
A39: 35 | B39: 0.0004208 | C39: 9910226.846
A40: 36 | B40: 0.0004561 | C40: 9906056.623
A41: 37 | B41: 0.0004966 | C41: 9901538.47
A42: 38 | B42: 0.0005348 | C42: 9896621.366
A43: 39 | B43: 0.000591 | C43: 9891328.653
A44: 40 | B44: 0.0006563 | C44: 9885482.878
A45: 41 | B45: 0.0007282 | C45: 9878995.036
A46: 42 | B46: 0.0008097 | C46: 9871801.151
A47: 43 | B47: 0.0009096 | C47: 9863807.954
A48: 44 | B48: 0.001015 | C48: 9854835.834
A49: 45 | B49: 0.0011553 | C49: 9844833.176
A50: 46 | B50: 0.0012844 | C50: 9833459.44
A51: 47 | B51: 0.0014652 | C51: 9820829.345
A52: 48 | B52: 0.0016442 | C52: 9806439.866
A53: 49 | B53: 0.001845 | C53: 9790316.117
A54: 50 | B54: 0.0020575 | C54: 9772252.984
A55: 51 | B55: 0.0022717 | C55: 9752146.574
A56: 52 | B56: 0.0025132 | C56: 9729992.622
A57: 53 | B57: 0.0027727 | C57: 9705539.205
A58: 54 | B58: 0.0030683 | C58: 9678628.656
A59: 55 | B59: 0.0033853 | C59: 9648931.72
A60: 56 | B60: 0.0037055 | C60: 9616267.191
A61: 57 | B61: 0.0041043 | C61: 9580634.113
A62: 58 | B62: 0.0044928 | C62: 9541312.317
A63: 59 | B63: 0.0049588 | C63: 9498445.109
A64: 60 | B64: 0.0053981 | C64: 9451344.219
A65: 61 | B65: 0.0059002 | C65: 9400324.918
A66: 62 | B66: 0.0063818 | C66: 9344861.121
A67: 63 | B67: 0.0068926 | C67: 9285224.086
A68: 64 | B68: 0.007449 | C68: 9221224.751
A69: 65 | B69: 0.0080465 | C69: 9152535.847
A70: 66 | B70: 0.0087135 | C70: =+C69*(1-B69) -> 9078889.968
A71: 67 | B71: 0.0095099 | C71: 8999781.06
A72: 68 | B72: 0.0103934 | C72: 8914194.042
A73: 69 | B73: 0.0114219 | C73: 8821545.258
A74: 70 | B74: 0.0124157 | C74: 8720786.45
A75: 71 | B75: 0.0136018 | C75: 8612511.782
A76: 72 | B76: 0.0148664 | C76: 8495366.119
A77: 73 | B77: 0.0163926 | C77: 8369070.608
A78: 74 | B78: 0.0181714 | C78: 8231879.781
A79: 75 | B79: 0.0201745 | C79: 8082295.001
A80: 76 | B80: 0.0226449 | C80: 7919238.74
A81: 77 | B81: 0.0257001 | C81: 7739908.371
A82: 78 | B82: 0.0291877 | C82: 7540991.952
A83: 79 | B83: 0.0333453 | C83: 7320887.741
A84: 80 | B84: 0.0380429 | C84: 7076770.543
A85: 81 | B85: 0.0434457 | C85: 6807549.669
A86: 82 | B86: 0.0498682 | C86: 6511790.908
A87: 83 | B87: 0.0574598 | C87: 6187059.617
A88: 84 | B88: 0.0659711 | C88: 5831552.409
A89: 85 | B89: 0.0754835 | C89: 5446838.482
A90: 86 | B90: 0.0864632 | C90: 5035692.049
A91: 87 | B91: 0.098913 | C91: 4600290
A92: 88 | B92: 0.1130378 | C92: 4145261.516
A93: 89 | B93: 0.1287473 | C93: 3676690.273
A94: 90 | B94: 0.1455028 | C94: 3203326.328
A95: 91 | B95: 0.1641779 | C95: 2737233.378
A96: 92 | B96: 0.1838406 | C96: 2287840.15
A97: 93 | B97: 0.2052234 | C97: 1867242.244
A98: 94 | B98: 0.2280469 | C98: 1484040.442
A99: 95 | B99: 0.2503822 | C99: 1145609.62
A100: 96 | B100: 0.2745697 | C100: 858769.3629
A101: 97 | B101: 0.2992867 | C101: 622977.3166
A102: 98 | B102: 0.3242322 | C102: 436528.4913
A103: 99 | B103: 0.3490924 | C103: 294991.8982
A104: 100 | B104: 0.3735567 | C104: 192012.4685
A105: 101 | B105: 0.3973334 | C105: 120284.9244
A106: 102 | B106: 0.4201633 | C106: 72491.70642
A107: 103 | B107: 0.4418305 | C107: 42033.35183
A108: 104 | B108: 0.4621685 | C108: 23461.73497
A109: 105 | B109: 0.4810629 | C109: 12618.46011
A110: 106 | B110: 0.4984493 | C110: 6548.187097
A111: 107 | B111: 0.514309 | C111: 3284.247822
A112: 108 | B112: 0.528662 | C112: 1595.129609
A113: 109 | B113: 0.5415596 | C113: 751.8451997
A114: 110 | B114: 0.5530765 | C114: 344.6762141
A115: 111 | B115: 0.5633031 | C115: 154.0439
A116: 112 | B116: 0.5723395 | C116: 67.27049358
A117: 113 | B117: 0.5802901 | C117: 28.76893292
A118: 114 | B118: 0.5872591 | C118: 12.07460596
A119: 115 | B119: 0.5933481 | C119: 4.983683731
A120: 116 | B120: 0.5986531 | C120: 2.026624458
A121: 117 | B121: 0.603264 | C121: 0.8133794437
A122: 118 | B122: 0.6072632 | C122: 0.322696907
A123: 119 | B123: 0.6107256 | C123: 0.1267349506
A124: 120 | B124: 0.6137187 | C124: 0.04933467186

Sheet Blad2 (hidden)
B2: Aanpassingen
A4: - | B4: Rendement en inflatie begint te lopen op 1-1 van kapitalisatiejaar of op 1-7 van kapitalisatiejaar (HRP per 1-1 en bij NRL op 1-7)
A5: - | B5: Leeftijd tbv berekenen sterftecijfers? Jaar-/-geboortejaar, of differentieren op specifieke geboortedatum?
G29: 2019-01-01
G30: 1985-04-01
G31: =(G29-G30)/365.25 -> 33.7522245

Sheet Blad3 (hidden)
B1: 1993
B2: 1994
B3: 1995
B4: 1996 | D4: man | H4: ja
B5: 1997 | D5: vrouw | H5: nee
B6: 1998 | F6: 1 | J6: nee
B7: 1999 | F7: 2 | J7: Ja, enkele vrijstelling (€30.360)
B8: 2000 | F8: 3 | J8: Ja, dubbele vrijstelling (€60.720)
B9: 2001 | F9: 4
B10: 2002 | F10: 5
B11: 2003 | F11: 6
B12: 2004 | F12: 7
B13: 2005 | F13: 8
B14: 2006 | F14: 9 | J14: Gedurende hoeveel jaar?
B15: 2007 | F15: 10 | J15: 1
B16: 2008 | F16: 11 | J16: 2
B17: 2009 | F17: 12 | J17: 3
B18: 2010 | F18: 13 | J18: 4
B19: 2011 | F19: 14 | J19: 5
B20: 2012 | F20: 15 | J20: 6
B21: 2013 | F21: 16 | J21: 7
B22: 2014 | F22: 17 | J22: 8
B23: 2015 | F23: 18 | J23: 9
B24: 2016 | F24: 19 | J24: 10
B25: 2017 | F25: 20 | J25: 11
B26: 2018 | D26: 2015 | F26: 21 | J26: 12
B27: 2019 | D27: 2016 | F27: 22 | J27: 13
D28: 2017 | F28: 23 | J28: 14
D29: 2018 | F29: 24 | J29: 15
D30: 2019 | F30: 25 | J30: 16
D31: 2020 | F31: 26 | J31: 17
F32: 27 | J32: 18
F33: 28 | J33: 19
F34: 29 | J34: 20
F35: 30 | J35: 21
F36: 31 | J36: 22
F37: 32 | J37: 23
F38: 33 | J38: 24
F39: 34 | J39: 25
F40: 35 | J40: 26
F41: 36 | J41: 27
F42: 37 | J42: 28
F43: 38 | J43: 29
F44: 39 | J44: 30
F45: 40 | J45: 31
F46: 41 | J46: 32
F47: 42 | J47: 33
F48: 43 | J48: 34
F49: 44 | J49: 35
F50: 45 | J50: 36
F51: 46 | J51: 37
F52: 47 | J52: 38
F53: 48 | J53: 39
F54: 49 | J54: 40
F55: 50 | J55: 41
F56: 51 | J56: 42
F57: 52 | J57: 43
F58: 53 | J58: 44
F59: 54 | J59: 45
F60: 55 | J60: 46
F61: 56 | J61: 47
F62: 57 | J62: 48
F63: 58 | J63: 49
F64: 59 | J64: 50
F65: 60 | J65: 51
F66: 61 | J66: 52
F67: 62 | J67: 53
F68: 63 | J68: 54
F69: 64 | J69: 55
F70: 65 | J70: 56
F71: 66 | J71: 57
F72: 67 | J72: 58
F73: 68 | J73: 59
F74: 69 | J74: 60
F75: 70

Sheet Blad1 (hidden)

Sheet Blad4 (hidden)
